{"text_format":"1","workbook":"xlsx","n_sheets":14,"sheets":["Accueil","Listes menus","Propositions menus midi retrait","Propositions menus journaliers","Propositions menus VMWE","BD articles menus","BD menus","Menus midi retraite","Menus journaliers","Menus viandes midi weekend","Quantités desserts","Quantités légumes","Quantités viandes","Bordures"],"not_rendered":{"charts":0,"images":0,"macros":1,"external_links":0,"defined_names":4,"comments":0,"pivot_tables":0},"unopened":[],"bounds":{"document_bytes":16777216,"sheet_cells":100000,"rows_first":2000,"rows_last":500,"rows_between":2000,"halvings":0,"cell_chars":16384,"cell_head_chars":4096},"cells_cut":0,"cells_raw":0,"read":"whole","date_system":"1900"}

{"sheet":"Accueil","index":0,"n_rows":117,"n_cols":11,"rows_kept":117,"cut":false,"hidden":false,"merged":[]}
[null,null,null,null,null,null,2026,null,null,"Open","Save"]
[null,null,null,null,null,null,null,null,null,"2024-11-16T19:28:30","2024-11-16T19:26:38"]
[null,null,null,null,null,null,null,null,null,"2024-11-17T11:18:29","2024-11-16T19:28:08"]
[null,null,null,null,null,null,null,null,null,"2024-11-17T13:30:51","2024-11-16T19:53:40"]
[null,null,null,null,null,null,null,null,null,"2024-11-17T21:18:25","2024-11-16T23:01:12"]
[null,null,null,null,null,null,null,null,null,"2024-11-18T12:05:04","2024-11-17T12:58:34"]
[null,null,null,null,null,null,null,null,null,"2024-11-18T12:43:34","2024-11-17T13:59:32"]
[null,null,null,null,null,null,null,null,null,"2024-11-18T12:47:36","2024-11-17T14:00:02"]
[null,null,null,null,null,null,null,null,null,"2024-11-18T15:12:29","2024-11-17T14:10:40"]
[null,null,null,null,null,null,null,null,null,"2024-11-19T08:48:59","2024-11-17T21:58:30"]
[null,null,null,null,null,null,null,null,null,"2024-11-19T15:10:10","2024-11-18T12:10:24"]
[null,null,null,null,null,null,null,null,null,"2024-11-20T11:39:57","2024-11-18T12:40:12"]
[null,null,null,null,null,null,null,null,null,"2024-11-21T16:28:26","2024-11-18T12:46:12"]
[null,null,null,null,null,null,null,null,null,"2024-11-22T10:44:24","2024-11-18T13:31:50"]
[null,null,null,null,null,null,null,null,null,"2024-11-22T12:17:18","2024-11-18T15:18:22"]
[null,null,null,null,null,null,null,null,null,"2024-11-22T15:43:46","2024-11-19T09:07:11"]
[null,null,null,null,null,null,null,null,null,"2024-11-23T10:10:35","2024-11-19T15:49:20"]
[null,null,null,null,null,null,null,null,null,"2024-11-23T11:12:05","2024-11-20T12:40:07"]
[null,null,null,null,null,null,null,null,null,"2024-11-23T12:01:43","2024-11-21T17:36:47"]
[null,null,null,null,null,null,null,null,null,"2024-11-23T17:01:51","2024-11-21T17:40:11"]
[null,null,null,null,null,null,null,null,null,"2024-11-23T17:49:26","2024-11-21T17:53:55"]
[null,null,null,null,null,null,null,null,null,"2024-11-23T17:51:59","2024-11-22T11:13:50"]
[null,null,null,null,null,null,null,null,null,"2024-11-23T18:04:22","2024-11-22T12:42:58"]
[null,null,null,null,null,null,null,null,null,"2024-11-23T19:11:52","2024-11-22T17:48:38"]
[null,null,null,null,null,null,null,null,null,"2024-11-23T19:46:16","2024-11-23T10:49:24"]
[null,null,null,null,null,null,null,null,null,"2024-11-25T10:42:52","2024-11-23T10:53:28"]
[null,null,null,null,null,null,null,null,null,"2024-12-10T09:06:05","2024-11-23T10:56:04"]
[null,null,null,null,null,null,null,null,null,"2024-12-12T16:41:49","2024-11-23T11:43:02"]
[null,null,null,null,null,null,null,null,null,"2024-12-13T16:03:47","2024-11-23T11:58:17"]
[null,null,null,null,null,null,null,null,null,"2024-12-13T19:01:33","2024-11-23T12:07:30"]
[null,null,null,null,null,null,null,null,null,"2024-12-14T10:45:22","2024-11-23T17:30:02"]
[null,null,null,null,null,null,null,null,null,"2024-12-14T17:14:22","2024-11-23T17:49:54"]
[null,null,null,null,null,null,null,null,null,"2024-12-14T18:39:27","2024-11-23T18:01:44"]
[null,null,null,null,null,null,null,null,null,"2024-12-16T16:24:32","2024-11-23T18:03:12"]
[null,null,null,null,null,null,null,null,null,"2024-12-16T21:14:02","2024-11-23T18:10:38"]
[null,null,null,null,null,null,null,null,null,"2024-12-17T10:54:55","2024-11-23T19:19:16"]
[null,null,null,null,null,null,null,null,null,"2024-12-19T10:14:44","2024-11-23T19:23:20"]
[null,null,null,null,null,null,null,null,null,"2024-12-19T19:31:01","2024-11-23T19:46:44"]
[null,null,null,null,null,null,null,null,null,"2024-12-19T21:32:39","2024-11-25T11:14:16"]
[null,null,null,null,null,null,null,null,null,"2024-12-20T17:15:20","2024-12-10T09:24:54"]
[null,null,null,null,null,null,null,null,null,"2024-12-21T11:24:43","2024-12-12T19:02:23"]
[null,null,null,null,null,null,null,null,null,"2024-12-21T11:42:29","2024-12-13T17:44:43"]
[null,null,null,null,null,null,null,null,null,"2024-12-21T11:52:47","2024-12-13T21:32:32"]
[null,null,null,null,null,null,null,null,null,"2024-12-22T11:16:34","2024-12-14T11:17:06"]
[null,null,null,null,null,null,null,null,null,"2024-12-22T15:29:47","2024-12-14T11:51:10"]
[null,null,null,null,null,null,null,null,null,"2024-12-22T15:57:09","2024-12-14T17:42:44"]
[null,null,null,null,null,null,null,null,null,"2024-12-22T16:13:35","2024-12-14T20:08:22"]
[null,null,null,null,null,null,null,null,null,"2024-12-22T17:05:00","2024-12-14T20:10:28"]
[null,null,null,null,null,null,null,null,null,"2024-12-22T18:53:16","2024-12-14T20:12:20"]
[null,null,null,null,null,null,null,null,null,"2024-12-22T21:27:02","2024-12-14T20:12:31"]
[null,null,null,null,null,null,null,null,null,"2024-12-22T22:40:33","2024-12-14T20:14:07"]
[null,null,null,null,null,null,null,null,null,"2024-12-23T10:38:22","2024-12-16T16:50:47"]
[null,null,null,null,null,null,null,null,null,"2024-12-25T15:50:47","2024-12-16T17:47:35"]
[null,null,null,null,null,null,null,null,null,"2024-12-25T15:57:59","2024-12-16T21:58:28"]
[null,null,null,null,null,null,null,null,null,"2024-12-25T21:02:36","2024-12-17T12:25:05"]
[null,null,null,null,null,null,null,null,null,"2024-12-26T11:29:40","2024-12-17T12:27:02"]
[null,null,null,null,null,null,null,null,null,"2024-12-26T16:34:17","2024-12-17T12:33:36"]
[null,null,null,null,null,null,null,null,null,"2024-12-26T19:24:46","2024-12-19T10:55:18"]
[null,null,null,null,null,null,null,null,null,"2024-12-26T21:20:41","2024-12-19T12:26:46"]
[null,null,null,null,null,null,null,null,null,"2024-12-27T11:53:07","2024-12-19T21:25:00"]
[null,null,null,null,null,null,null,null,null,"2024-12-27T12:27:13","2024-12-19T22:13:10"]
[null,null,null,null,null,null,null,null,null,"2024-12-27T12:51:36","2024-12-20T17:23:46"]
[null,null,null,null,null,null,null,null,null,"2024-12-28T10:41:47","2024-12-21T11:41:12"]
[null,null,null,null,null,null,null,null,null,"2024-12-28T17:01:42","2024-12-21T11:43:38"]
[null,null,null,null,null,null,null,null,null,"2024-12-29T11:16:31","2024-12-21T11:52:29"]
[null,null,null,null,null,null,null,null,null,"2024-12-29T11:17:24","2024-12-21T12:29:37"]
[null,null,null,null,null,null,null,null,null,"2024-12-29T18:55:32","2024-12-22T11:34:03"]
[null,null,null,null,null,null,null,null,null,"2024-12-29T19:14:16","2024-12-22T15:54:07"]
[null,null,null,null,null,null,null,null,null,"2024-12-29T21:24:13","2024-12-22T16:02:10"]
[null,null,null,null,null,null,null,null,null,"2024-12-30T11:14:48","2024-12-22T16:13:16"]
[null,null,null,null,null,null,null,null,null,"2024-12-30T21:51:01","2024-12-22T16:49:24"]
[null,null,null,null,null,null,null,null,null,"2025-03-27T10:53:32","2024-12-22T17:04:20"]
[null,null,null,null,null,null,null,null,null,"2025-03-27T16:30:51","2024-12-22T18:04:58"]
[null,null,null,null,null,null,null,null,null,"2025-03-28T10:58:53","2024-12-22T19:17:12"]
[null,null,null,null,null,null,null,null,null,null,"2024-12-22T19:18:54"]
[null,null,null,null,null,null,null,null,null,null,"2024-12-22T22:24:09"]
[null,null,null,null,null,null,null,null,null,null,"2024-12-22T22:51:40"]
[null,null,null,null,null,null,null,null,null,null,"2024-12-22T22:51:51"]
[null,null,null,null,null,null,null,null,null,null,"2024-12-22T22:52:23"]
[null,null,null,null,null,null,null,null,null,null,"2024-12-23T12:06:46"]
[null,null,null,null,null,null,null,null,null,null,"2024-12-25T15:57:10"]
[null,null,null,null,null,null,null,null,null,null,"2024-12-25T17:00:17"]
[null,null,null,null,null,null,null,null,null,null,"2024-12-25T19:15:46"]
[null,null,null,null,null,null,null,null,null,null,"2024-12-25T21:36:25"]
[null,null,null,null,null,null,null,null,null,null,"2024-12-25T21:59:41"]
[null,null,null,null,null,null,null,null,null,null,"2024-12-25T22:06:34"]
[null,null,null,null,null,null,null,null,null,null,"2024-12-26T12:42:57"]
[null,null,null,null,null,null,null,null,null,null,"2024-12-26T12:52:29"]
[null,null,null,null,null,null,null,null,null,null,"2024-12-26T13:37:12"]
[null,null,null,null,null,null,null,null,null,null,"2024-12-26T16:53:32"]
[null,null,null,null,null,null,null,null,null,null,"2024-12-26T17:48:38"]
[null,null,null,null,null,null,null,null,null,null,"2024-12-26T19:54:58"]
[null,null,null,null,null,null,null,null,null,null,"2024-12-26T20:00:00"]
[null,null,null,null,null,null,null,null,null,null,"2024-12-26T20:06:41"]
[null,null,null,null,null,null,null,null,null,null,"2024-12-26T21:38:54"]
[null,null,null,null,null,null,null,null,null,null,"2024-12-26T21:50:18"]
[null,null,null,null,null,null,null,null,null,null,"2024-12-27T12:07:35"]
[null,null,null,null,null,null,null,null,null,null,"2024-12-27T12:31:54"]
[null,null,null,null,null,null,null,null,null,null,"2024-12-27T13:03:58"]
[null,null,null,null,null,null,null,null,null,null,"2024-12-28T11:25:28"]
[null,null,null,null,null,null,null,null,null,null,"2024-12-28T12:13:36"]
[null,null,null,null,null,null,null,null,null,null,"2024-12-28T12:15:06"]
[null,null,null,null,null,null,null,null,null,null,"2024-12-28T17:37:45"]
[null,null,null,null,null,null,null,null,null,null,"2024-12-29T11:16:37"]
[null,null,null,null,null,null,null,null,null,null,"2024-12-29T13:00:09"]
[null,null,null,null,null,null,null,null,null,null,"2024-12-29T19:07:06"]
[null,null,null,null,null,null,null,null,null,null,"2024-12-29T19:38:45"]
[null,null,null,null,null,null,null,null,null,null,"2024-12-29T22:18:22"]
[null,null,null,null,null,null,null,null,null,null,"2024-12-30T11:16:57"]
[null,null,null,null,null,null,null,null,null,null,"2024-12-30T13:37:43"]
[null,null,null,null,null,null,null,null,null,null,"2024-12-30T23:09:09"]
[null,null,null,null,null,null,null,null,null,null,"2024-12-30T23:09:26"]
[null,null,null,null,null,null,null,null,null,null,"2025-03-27T11:17:31"]
[null,null,null,null,null,null,null,null,null,null,"2025-03-27T12:58:57"]
[null,null,null,null,null,null,null,null,null,null,"2025-03-27T13:21:48"]
[null,null,null,null,null,null,null,null,null,null,"2025-03-27T16:57:48"]
[null,null,null,null,null,null,null,null,null,null,"2025-03-28T11:39:39"]

{"sheet":"Listes menus","index":1,"n_rows":47,"n_cols":54,"rows_kept":47,"cut":false,"hidden":false,"merged":[[1,12,1,13],[1,0,1,1],[0,3,1,4],[1,6,1,7],[1,9,1,10],[1,33,1,34],[1,36,1,37],[1,39,1,40],[1,42,1,43],[1,15,1,16],[1,18,1,19],[1,21,1,22],[1,24,1,25],[1,27,1,28],[1,30,1,31]]}
[null,null,null,"TabDessertMidiRetraite",null,null,null,null,null,null,null,null,null,null,null,null,null,null,null,null,null,null,null,null,null,null,null,null,null,null,null,null,null,null,null,null,null,null,null,null,null,null,null,null,null,null,null,null,null,null,null,null,2026]
["TabNatureCréationArticlesMenus",null,null,null,null,null,"TabDessertSoir",null,null,"TabDessertsWeekend",null,null,"TabLégumesMidiRetraite",null,null,"TabLégumesSoirsLundiMardi",null,null,"TabLégumesSoirsMercrediJeudi",null,null,"TabLégumesSoirsVendredi",null,null,"TabLégumesWeekendSamedi",null,null,"TabLégumesWeekendDimanche",null,null,"TabViandesMidiRetraite",null,null,"TabViandesMidiWeekend",null,null,"TabViandesSoirs",null,null,"TabPériodeArticlesMenus",null,null,"TabConditionnementArticlesMenus",null,null,null,null,null,null,null,null,null,"TabJoursFériés"]
["Nom nature création articles menus","Code nom nature création articles menus",null,"Nom dessert midi retraite","Code nom dessert midi retraite",null,"Nom dessert soir","Code nom dessert soir",null,"Nom desserts weekend","Code nom desserts weekend",null,"Nom légumes midi retraite","Code nom légumes midi retraite",null,"Nom légumes soirs lundi mardi","Code nom légumes soirs lundi mardi",null,"Nom légumes soirs mercredi jeudi","Code nom légumes soirs mercredi jeudi",null,"Nom légumes soirs vendredi","Code nom légumes soirs vendredi",null,"Nom légumes weekend samedi","Code légumes weekend samedi",null,"Nom légumes weekend dimanche","Code légumes weekend dimanche",null,"Nom viandes midi retraite","Code viandes midi retraite",null,"Nom viandes midi weekend","Code viandes midi weekend",null,"Nom viandes soirs","Code viandes soirs",null,"Nom période articles menus","Code période articles menus",null,"Nom conditionnement articles menus","Code nom conditionnement articles menus",null,null,null,null,null,null,null,null,"Nom jour férié","Date jour férié"]
["Dessert midi retraite","DMR",null,"Pomme","DMR01",null,"Pomme","DS01",null,"Ananas","DW01",null,"Asperges","LMR01",null,"Cassoulet","LSLM01",null,"Macédoine de légumes","LSMJ01",null,"Asperges","LSV01",null,"Pâtes à la sauce tomates","LWS01",null,"Asperges","LWD01",null,"Rôti d'agneau","VMR01",null,"Agneau","VMW01",null,"Bifteck haché de bœuf","VS01",null,"Dimanche midi","PAM01",null,"1 bocal pour 1 repas (Asperges)","CAM01",null,null,null,null,null,null,null,null,"Jour de l'an",{"$f":"DATE(BA1,1,1)","v":"2026-01-01"}]
["Dessert soir","DS",null,null,null,null,null,null,null,"Autres fruits","DW02",null,"Avocat légume","LMR02",null,"Choucroute","LSLM02",null,"Petits pois","LSMJ02",null,"Avocat légume","LSV02",null,"Pâtes au beurre","LWS02",null,"Chips","LWD02",null,"Rôti de bœuf","VMR02",null,"Bœuf","VMW02",null,"Bifteck haché de cheval","VS02",null,"Dimanche midi et soir","PAM02",null,"1 boîte de 6 œufs. 3 œufs pour un repas","CAM02",null,null,null,null,null,null,null,null,"Pâques",{"$f":"DATE(YEAR(BA1),3,29.56+0.979*MOD(204-11*MOD(YEAR(BA1),19),30)-WEEKDAY(DATE(YEAR(BA1),3,28.56+0.979*MOD(204-11*MOD(YEAR(BA1),19),30))))","v":"1905-04-23"}]
["Desserts weekend","DWE",null,null,null,null,null,null,null,"Avocats desserts","DW03",null,"Carottes","LMR03",null,"Chou-fleur","LSLM03",null,"Petits pois et jeunes carottes","LSMJ03",null,"Betteraves rouges","LSV03",null,"Pâtes au fromage râpé","LWS03",null,"Frites","LWD03",null,"Rôti de cheval","VMR03",null,"Cheval","VMW03",null,"Bifteck haché de porc","VS03",null,"Dimanche soir","PAM03",null,"1 boîte de 8. 1 pour 1 repas (Quiche lorraine)","CAM03",null,null,null,null,null,null,null,null,"Lundi de Pâques",{"$f":"BB5+1","v":"1905-04-24"}]
["Légumes midi retraite","LMR",null,null,null,null,null,null,null,"Bananes","DW04",null,"Céleri","LMR04",null,"Choux de Bruxelles","LSLM04",null,"Ratatouille","LSMJ04",null,"Carottes","LSV04",null,null,null,null,"Haricots verts","LWD04",null,"Rôti de porc","VMR04",null,"Dinde","VMW04",null,"Bifteck haché de veau","VS04",null,"Lundi à dimanche soirs","PAM04",null,"1 boîte pour 1 repas (Champignons, Salsifis, Thon)","CAM04",null,null,null,null,null,null,null,null,"Fête du travail",{"$f":"DATE(BA1,5,1)","v":"2026-05-01"}]
["Légumes soirs lundi mardi","LSLM",null,null,null,null,null,null,null,"Clémentines","DW05",null,"Champignons","LMR05",null,"Couscous","LSLM05",null,"Raviolis","LSMJ05",null,"Céleri","LSV05",null,null,null,null,null,null,null,"Rôti de veau","VMR05",null,"Poisson","VMW05",null,"Bouchée à la reine","VS05",null,"Lundi à vendredi midis","PAM05",null,"1 boîte pour 2 repas (Bouchées à la reine, Cassoulet, Choucroute, Choux de Bruxelles, Croque-monsieur, Endives, Fruits au sirop, Gâteaux samedi dimanche","CAM05",null,null,null,null,null,null,null,null,"Victoire 1945",{"$f":"DATE(BA1,5,8)","v":"2026-05-08"}]
["Légumes soirs mercredi jeudi","LSMJ",null,null,null,null,null,null,null,"Crème","DW06",null,"Concombre","LMR06",null,"Endives","LSLM06",null,"Tomates pelées","LSMJ06",null,"Champignons","LSV06",null,null,null,null,null,null,null,null,null,null,"Porc","VMW06",null,"Boudin","VS06",null,"Lundi à vendredi soirs","PAM06",null,"1 boite pour 2 repas (Haricots verts, Macédoine de légumes, Maïs, Paella, Petits pois, Petits pois et jeunes carottes, Quenelles, Ratatouille, Raviolis, Roulé au fromage","CAM06",null,null,null,null,null,null,null,null,"Jeudi de l'ascension",{"$f":"BB6+38","v":"1905-06-01"}]
["Légumes soirs vendredi","LSV",null,null,null,null,null,null,null,"Dattes","DW07",null,"Couscous","LMR07",null,"Haricots verts","LSLM07",null,null,null,null,"Concombre","LSV07",null,null,null,null,null,null,null,null,null,null,"Veau","VMW07",null,"Cervelas","VS07",null,"Lundi et mardi soirs","PAM07",null,"1 boîte pour 2 repas (Tomates pelées, Viande cassoulet, Viande choucroute, Viande paella)","CAM07",null,null,null,null,null,null,null,null,"Pentecôte",{"$f":"BB5+49","v":"1905-06-11"}]
["Légumes weekend samedi","LWES",null,null,null,null,null,null,null,"Figues","DW08",null,"Maïs","LMR08",null,"Maïs","LSLM08",null,null,null,null,"Radis vendredi soir","LSV08",null,null,null,null,null,null,null,null,null,null,null,null,null,"Cœur","VS08",null,"Mercredi et jeudi soirs","PAM08",null,"1 morceau de 500 grammes pour du lundi au vendredi inclus midi retraite (Rôti d'agneau, Rôti de bœuf, Rôti de cheval, Rôti de porc, Rôti de veau)","CAM08",null,null,null,null,null,null,null,null,"Lundi de Pentecôte",{"$f":"BB10+1","v":"1905-06-12"}]
["Légumes weekend dimanche","LWED",null,null,null,null,null,null,null,"Fromage blanc desserts","DW09",null,"Pâtes à la sauce tomates","LMR09",null,"Paella","LSLM09",null,null,null,null,"Salade","LSV09",null,null,null,null,null,null,null,null,null,null,null,null,null,"Croque-monsieur","VS09",null,"Samedi et dimanche midis","PAM09",null,"1 morceau pour 2 repas (Boudin, Cervelas, Jambonneau)","CAM09",null,null,null,null,null,null,null,null,"Fête nationale",{"$f":"DATE(BA1,7,14)","v":"2026-07-14"}]
["Viandes midi retraite","VMR",null,null,null,null,null,null,null,"Fruits au sirop","DW10",null,"Pâtes au beurre","LMR10",null,"Poireau","LSLM10",null,null,null,null,"Salsifis","LSV10",null,null,null,null,null,null,null,null,null,null,null,null,null,"Foie","VS10",null,"Samedi et dimanche midis et soirs","PAM10",null,"1 pack de 4 pots pour le weekend, 1 pot par repas (Crème, Fromage blanc desserts, Gâteau de riz, Gâteau de semoule, Mousse au chocolat, Riz au lait, Yaourts desserts)","CAM10",null,null,null,null,null,null,null,null,"Assomption",{"$f":"DATE(BA1,8,15)","v":"2026-08-15"}]
["Viandes midi weekend","VMWE",null,null,null,null,null,null,null,"Fruits de saison","DW11",null,"Poireau","LMR11",null,"Pomme de terre","LSLM11",null,null,null,null,"Tomates","LSV11",null,null,null,null,null,null,null,null,null,null,null,null,null,"Fromage de tête","VS11",null,"Samedi midi et soir","PAM11",null,"1 pack de 6 pots. 3 pots pour 1 repas (Petits suisses)","CAM11",null,null,null,null,null,null,null,null,"Toussaint",{"$f":"DATE(BA1,11,1)","v":"2026-11-01"}]
["Viandes soirs","VS",null,null,null,null,null,null,null,"Gâteau de riz","DW12",null,"Pomme de terre","LMR12",null,"Purée","LSLM12",null,null,null,null,null,null,null,null,null,null,null,null,null,null,null,null,null,null,null,"Jambon","VS12",null,"Vendredi soir","PAM12",null,"1 paquet pour 2 repas (Bifteck haché  de bœuf, Bifteck haché de porc, Bifteck haché de veau, Cœur, Foie, Fromage de tête, Jambon, Mortadelle, Pizza, Salami, Saucisses)","CAM12",null,null,null,null,null,null,null,null,"Armistice 1918",{"$f":"DATE(BA1,11,11)","v":"2026-11-11"}]
["Menu midi retraite","MMR",null,null,null,null,null,null,null,"Gâteau de semoule","DW13",null,"Purée","LMR13",null,"Quenelles","LSLM13",null,null,null,null,null,null,null,null,null,null,null,null,null,null,null,null,null,null,null,"Jambonneau","VS13",null,null,null,null,"1 paquet pour 4 repas (Dattes, Figues, Pruneaux)","CAM13",null,null,null,null,null,null,null,null,"Noël",{"$f":"DATE(BA1,12,25)","v":"2026-12-25"}]
["Menu journalier","MJ",null,null,null,null,null,null,null,"Gâteaux samedi dimanche","DW14",null,"Radis midi retraite","LMR14",null,"Riz","LSLM14",null,null,null,null,null,null,null,null,null,null,null,null,null,null,null,null,null,null,null,"Mortadelle","VS14",null,null,null,null,"1 pour 4 repas (Ananas)","CAM14"]
["Menu viande midi weekend","MVMW",null,null,null,null,null,null,null,"Mousse au chocolat","DW15",null,"Riz","LMR15",null,null,null,null,null,null,null,null,null,null,null,null,null,null,null,null,null,null,null,null,null,null,"Œufs","VS15",null,null,null,null,"1 sachet de 2000 grammes. 1 Pomme pour 1 repas","CAM15"]
[null,null,null,null,null,null,null,null,null,"Oranges","DW16",null,"Salade","LMR16",null,null,null,null,null,null,null,null,null,null,null,null,null,null,null,null,null,null,null,null,null,null,"Pizza","VS16",null,null,null,null,"1 sachet de 30 ou 32 tranches. 5 tranches pour 1 repas (Saucisson)","CAM16"]
[null,null,null,null,null,null,null,null,null,"Petits suisses","DW17",null,"Tomates","LMR17",null,null,null,null,null,null,null,null,null,null,null,null,null,null,null,null,null,null,null,null,null,null,"Poisson","VS17",null,null,null,null,"1 sachet pour 1 repas (Chips, radis vendredi soir, Salade)","CAM17"]
[null,null,null,null,null,null,null,null,null,"Pruneaux","DW18",null,null,null,null,null,null,null,null,null,null,null,null,null,null,null,null,null,null,null,null,null,null,null,null,null,"Quiche lorraine","VS18",null,null,null,null,"1 sachet pour 2 repas (Radis midi retraite)","CAM18"]
[null,null,null,null,null,null,null,null,null,"Riz au lait","DW19",null,null,null,null,null,null,null,null,null,null,null,null,null,null,null,null,null,null,null,null,null,null,null,null,null,"Roulade à la pistache","VS19",null,null,null,null,"1 tranche pour 1 repas (Agneau, Bœuf, Cheval, Dinde, Porc, Veau)","CAM19"]
[null,null,null,null,null,null,null,null,null,"Tapioca","DW20",null,null,null,null,null,null,null,null,null,null,null,null,null,null,null,null,null,null,null,null,null,null,null,null,null,"Roulé au fromage","VS20",null,null,null,null,"1 tranche pour 2 repas (Tête persillée)","CAM20"]
[null,null,null,null,null,null,null,null,null,"Yaourts desserts","DW21",null,null,null,null,null,null,null,null,null,null,null,null,null,null,null,null,null,null,null,null,null,null,null,null,null,"Salami","VS21",null,null,null,null,"125 grammes pour 1 repas (Bifteck haché de cheval)","CAM21"]
[null,null,null,null,null,null,null,null,null,null,null,null,null,null,null,null,null,null,null,null,null,null,null,null,null,null,null,null,null,null,null,null,null,null,null,null,"Saucisses","VS22",null,null,null,null,"20 frites pour 1 repas","CAM22"]
[null,null,null,null,null,null,null,null,null,null,null,null,null,null,null,null,null,null,null,null,null,null,null,null,null,null,null,null,null,null,null,null,null,null,null,null,"Saucisson","VS23",null,null,null,null,"25 grammes pour 1 repas 'Couscous, Purée, Riz légume, Tapioca)","CAM23"]
[null,null,null,null,null,null,null,null,null,null,null,null,null,null,null,null,null,null,null,null,null,null,null,null,null,null,null,null,null,null,null,null,null,null,null,null,"Tête persillée","VS24",null,null,null,null,"3 tranches  pour 1 repas (Roulade à la pistache, Tête roulée)","CAM24"]
[null,null,null,null,null,null,null,null,null,null,null,null,null,null,null,null,null,null,null,null,null,null,null,null,null,null,null,null,null,null,null,null,null,null,null,null,"Tête roulée","VS25",null,null,null,null,"5 cuillères à soupe pour un repas (Pâtes à la sauce tomates, Pâtes au beurre, Pâtes au fromage râpé)","CAM25"]
[null,null,null,null,null,null,null,null,null,null,null,null,null,null,null,null,null,null,null,null,null,null,null,null,null,null,null,null,null,null,null,null,null,null,null,null,"Thon","VS26",null,null,null,null,"Unité : 1 branche pour 1 repas (Céleri)","CAM26"]
[null,null,null,null,null,null,null,null,null,null,null,null,null,null,null,null,null,null,null,null,null,null,null,null,null,null,null,null,null,null,null,null,null,null,null,null,"Viande cassoulet","VS27",null,null,null,null,"Unité : 1 pour 1 repas (Avocat légume, Avocats desserts, Bananes, Betterave rouge, Concombre, Oranges, Poireau, Poisson, Pomme de terre)","CAM27"]
[null,null,null,null,null,null,null,null,null,null,null,null,null,null,null,null,null,null,null,null,null,null,null,null,null,null,null,null,null,null,null,null,null,null,null,null,"Viande choucroute","VS28",null,null,null,null,"Unité : 1 pour 2 repas (Chou-fleur)","CAM28"]
[null,null,null,null,null,null,null,null,null,null,null,null,null,null,null,null,null,null,null,null,null,null,null,null,null,null,null,null,null,null,null,null,null,null,null,null,"Viande paella","VS29",null,null,null,null,"Unité : 2 à 4 pour 1 repas (Autres fruits, Clémentines, Fruits de saison)","CAM29"]
[null,null,null,null,null,null,null,null,null,null,null,null,null,null,null,null,null,null,null,null,null,null,null,null,null,null,null,null,null,null,null,null,null,null,null,null,null,null,null,null,null,null,"Unité : 2 pour 1 repas (Carottes, Tomates)","CAM30"]
[]
[]
[]
[]
[]
[]
[]
[]
[]
[]
[]
[]
[]
[null,null,null,null,null,null,null,null,null,null,null,null,null,null,null,null,null,null,null,null,null,null,null,null,null,null,null,null,null,null,null,null,null,null,null,null,null,null,null,null,null,null,"Tomates pelées, Viande cassoulet, Viande choucroute, Viande paella)"]

{"sheet":"Propositions menus midi retrait","index":2,"n_rows":532,"n_cols":8,"rows_kept":532,"cut":false,"hidden":false,"merged":[]}
["Propositions menus midi retraite"]
["Numéro du menu","MMR01","MMR02","MMR03","MMR04","MMR05","MMR06","MMR07"]
["Date du menu","2026-01-01","2026-01-02","2026-01-05","2026-01-06","2026-01-07","2026-01-08","2026-01-09"]
["Référence légume","LMR","LMR","LMR","LMR","LMR","LMR","LMR"]
["Légume"]
["Quantité légume"]
["Référence viande","VMR","VMR","VMR","VMR","VMR","VMR","VMR"]
["Viande"]
["Quantité viande","100,00","100,00","100,00","100,00","100,00","100,00","100,00"]
["Référence dessert","DMR01","DMR01","DMR01","DMR01","DMR01","DMR01","DMR01"]
["Dessert","Pomme","Pomme","Pomme","Pomme","Pomme","Pomme","Pomme"]
["Quantité dessert","1,00","1,00","1,00","1,00","1,00","1,00","1,00"]
["Référence jour férié","JF01"]
["Jour férié","Jour de l'an"]
["Propositions menus midi retraite"]
["Numéro du menu","MMR08","MMR09","MMR10","MMR11","MMR12","MMR13","MMR14"]
["Date du menu","2026-01-12","2026-01-13","2026-01-14","2026-01-15","2026-01-16","2026-01-19","2026-01-20"]
["Référence légume","LMR","LMR","LMR","LMR","LMR","LMR","LMR"]
["Légume"]
["Quantité légume"]
["Référence viande","VMR","VMR","VMR","VMR","VMR","VMR","VMR"]
["Viande"]
["Quantité viande","100,00","100,00","100,00","100,00","100,00","100,00","100,00"]
["Référence dessert","DMR01","DMR01","DMR01","DMR01","DMR01","DMR01","DMR01"]
["Dessert","Pomme","Pomme","Pomme","Pomme","Pomme","Pomme","Pomme"]
["Quantité dessert","1,00","1,00","1,00","1,00","1,00","1,00","1,00"]
["Référence jour férié"]
["Jour férié"]
["Propositions menus midi retraite"]
["Numéro du menu","MMR15","MMR16","MMR17","MMR18","MMR19","MMR20","MMR21"]
["Date du menu","2026-01-21","2026-01-22","2026-01-23","2026-01-26","2026-01-27","2026-01-28","2026-01-29"]
["Référence légume","LMR","LMR","LMR","LMR","LMR","LMR","LMR"]
["Légume"]
["Quantité légume"]
["Référence viande","VMR","VMR","VMR","VMR","VMR","VMR","VMR"]
["Viande"]
["Quantité viande","100,00","100,00","100,00","100,00","100,00","100,00","100,00"]
["Référence dessert","DMR01","DMR01","DMR01","DMR01","DMR01","DMR01","DMR01"]
["Dessert","Pomme","Pomme","Pomme","Pomme","Pomme","Pomme","Pomme"]
["Quantité dessert","1,00","1,00","1,00","1,00","1,00","1,00","1,00"]
["Référence jour férié"]
["Jour férié"]
["Propositions menus midi retraite"]
["Numéro du menu","MMR22","MMR23","MMR24","MMR25","MMR26","MMR27","MMR28"]
["Date du menu","2026-01-30","2026-02-02","2026-02-03","2026-02-04","2026-02-05","2026-02-06","2026-02-09"]
["Référence légume","LMR","LMR","LMR","LMR","LMR","LMR","LMR"]
["Légume"]
["Quantité légume"]
["Référence viande","VMR","VMR","VMR","VMR","VMR","VMR","VMR"]
["Viande"]
["Quantité viande","100,00","100,00","100,00","100,00","100,00","100,00","100,00"]
["Référence dessert","DMR01","DMR01","DMR01","DMR01","DMR01","DMR01","DMR01"]
["Dessert","Pomme","Pomme","Pomme","Pomme","Pomme","Pomme","Pomme"]
["Quantité dessert","1,00","1,00","1,00","1,00","1,00","1,00","1,00"]
["Référence jour férié"]
["Jour férié"]
["Propositions menus midi retraite"]
["Numéro du menu","MMR29","MMR30","MMR31","MMR32","MMR33","MMR34","MMR35"]
["Date du menu","2026-02-10","2026-02-11","2026-02-12","2026-02-13","2026-02-16","2026-02-17","2026-02-18"]
["Référence légume","LMR","LMR","LMR","LMR","LMR","LMR","LMR"]
["Légume"]
["Quantité légume"]
["Référence viande","VMR","VMR","VMR","VMR","VMR","VMR","VMR"]
["Viande"]
["Quantité viande","100,00","100,00","100,00","100,00","100,00","100,00","100,00"]
["Référence dessert","DMR01","DMR01","DMR01","DMR01","DMR01","DMR01","DMR01"]
["Dessert","Pomme","Pomme","Pomme","Pomme","Pomme","Pomme","Pomme"]
["Quantité dessert","1,00","1,00","1,00","1,00","1,00","1,00","1,00"]
["Référence jour férié"]
["Jour férié"]
["Propositions menus midi retraite"]
["Numéro du menu","MMR36","MMR37","MMR38","MMR39","MMR40","MMR41","MMR42"]
["Date du menu","2026-02-19","2026-02-20","2026-02-23","2026-02-24","2026-02-25","2026-02-26","2026-02-27"]
["Référence légume","LMR","LMR","LMR","LMR","LMR","LMR","LMR"]
["Légume"]
["Quantité légume"]
["Référence viande","VMR","VMR","VMR","VMR","VMR","VMR","VMR"]
["Viande"]
["Quantité viande","100,00","100,00","100,00","100,00","100,00","100,00","100,00"]
["Référence dessert","DMR01","DMR01","DMR01","DMR01","DMR01","DMR01","DMR01"]
["Dessert","Pomme","Pomme","Pomme","Pomme","Pomme","Pomme","Pomme"]
["Quantité dessert","1,00","1,00","1,00","1,00","1,00","1,00","1,00"]
["Référence jour férié"]
["Jour férié"]
["Propositions menus midi retraite"]
["Numéro du menu","MMR43","MMR44","MMR45","MMR46","MMR47","MMR48","MMR49"]
["Date du menu","2026-03-02","2026-03-03","2026-03-04","2026-03-05","2026-03-06","2026-03-09","2026-03-10"]
["Référence légume","LMR","LMR","LMR","LMR","LMR","LMR","LMR"]
["Légume"]
["Quantité légume"]
["Référence viande","VMR","VMR","VMR","VMR","VMR","VMR","VMR"]
["Viande"]
["Quantité viande","100,00","100,00","100,00","100,00","100,00","100,00","100,00"]
["Référence dessert","DMR01","DMR01","DMR01","DMR01","DMR01","DMR01","DMR01"]
["Dessert","Pomme","Pomme","Pomme","Pomme","Pomme","Pomme","Pomme"]
["Quantité dessert","1,00","1,00","1,00","1,00","1,00","1,00","1,00"]
["Référence jour férié"]
["Jour férié"]
["Propositions menus midi retraite"]
["Numéro du menu","MMR50","MMR51","MMR52","MMR53","MMR54","MMR55","MMR56"]
["Date du menu","2026-03-11","2026-03-12","2026-03-13","2026-03-16","2026-03-17","2026-03-18","2026-03-19"]
["Référence légume","LMR","LMR","LMR","LMR","LMR","LMR","LMR"]
["Légume"]
["Quantité légume"]
["Référence viande","VMR","VMR","VMR","VMR","VMR","VMR","VMR"]
["Viande"]
["Quantité viande","100,00","100,00","100,00","100,00","100,00","100,00","100,00"]
["Référence dessert","DMR01","DMR01","DMR01","DMR01","DMR01","DMR01","DMR01"]
["Dessert","Pomme","Pomme","Pomme","Pomme","Pomme","Pomme","Pomme"]
["Quantité dessert","1,00","1,00","1,00","1,00","1,00","1,00","1,00"]
["Référence jour férié"]
["Jour férié"]
["Propositions menus midi retraite"]
["Numéro du menu","MMR57","MMR58","MMR59","MMR60","MMR61","MMR62","MMR63"]
["Date du menu","2026-03-20","2026-03-23","2026-03-24","2026-03-25","2026-03-26","2026-03-27","2026-03-30"]
["Référence légume","LMR","LMR","LMR","LMR","LMR","LMR","LMR"]
["Légume"]
["Quantité légume"]
["Référence viande","VMR","VMR","VMR","VMR","VMR","VMR","VMR"]
["Viande"]
["Quantité viande","100,00","100,00","100,00","100,00","100,00","100,00","100,00"]
["Référence dessert","DMR01","DMR01","DMR01","DMR01","DMR01","DMR01","DMR01"]
["Dessert","Pomme","Pomme","Pomme","Pomme","Pomme","Pomme","Pomme"]
["Quantité dessert","1,00","1,00","1,00","1,00","1,00","1,00","1,00"]
["Référence jour férié"]
["Jour férié"]
["Propositions menus midi retraite"]
["Numéro du menu","MMR64","MMR65","MMR66","MMR67","MMR68","MMR69","MMR70"]
["Date du menu","2026-03-31","2026-04-01","2026-04-02","2026-04-03","2026-04-06","2026-04-07","2026-04-08"]
["Référence légume","LMR","LMR","LMR","LMR","LMR","LMR","LMR"]
["Légume"]
["Quantité légume"]
["Référence viande","VMR","VMR","VMR","VMR","VMR","VMR","VMR"]
["Viande"]
["Quantité viande","100,00","100,00","100,00","100,00","100,00","100,00","100,00"]
["Référence dessert","DMR01","DMR01","DMR01","DMR01","DMR01","DMR01","DMR01"]
["Dessert","Pomme","Pomme","Pomme","Pomme","Pomme","Pomme","Pomme"]
["Quantité dessert","1,00","1,00","1,00","1,00","1,00","1,00","1,00"]
["Référence jour férié"]
["Jour férié"]
["Propositions menus midi retraite"]
["Numéro du menu","MMR71","MMR72","MMR73","MMR74","MMR75","MMR76","MMR77"]
["Date du menu","2026-04-09","2026-04-10","2026-04-13","2026-04-14","2026-04-15","2026-04-16","2026-04-17"]
["Référence légume","LMR","LMR","LMR","LMR","LMR","LMR","LMR"]
["Légume"]
["Quantité légume"]
["Référence viande","VMR","VMR","VMR","VMR","VMR","VMR","VMR"]
["Viande"]
["Quantité viande","100,00","100,00","100,00","100,00","100,00","100,00","100,00"]
["Référence dessert","DMR01","DMR01","DMR01","DMR01","DMR01","DMR01","DMR01"]
["Dessert","Pomme","Pomme","Pomme","Pomme","Pomme","Pomme","Pomme"]
["Quantité dessert","1,00","1,00","1,00","1,00","1,00","1,00","1,00"]
["Référence jour férié"]
["Jour férié"]
["Propositions menus midi retraite"]
["Numéro du menu","MMR78","MMR79","MMR80","MMR81","MMR82","MMR83","MMR84"]
["Date du menu","2026-04-20","2026-04-21","2026-04-22","2026-04-23","2026-04-24","2026-04-27","2026-04-28"]
["Référence légume","LMR","LMR","LMR","LMR","LMR","LMR","LMR"]
["Légume"]
["Quantité légume"]
["Référence viande","VMR","VMR","VMR","VMR","VMR","VMR","VMR"]
["Viande"]
["Quantité viande","100,00","100,00","100,00","100,00","100,00","100,00","100,00"]
["Référence dessert","DMR01","DMR01","DMR01","DMR01","DMR01","DMR01","DMR01"]
["Dessert","Pomme","Pomme","Pomme","Pomme","Pomme","Pomme","Pomme"]
["Quantité dessert","1,00","1,00","1,00","1,00","1,00","1,00","1,00"]
["Référence jour férié"]
["Jour férié"]
["Propositions menus midi retraite"]
["Numéro du menu","MMR85","MMR86","MMR87","MMR88","MMR89","MMR90","MMR91"]
["Date du menu","2026-04-29","2026-04-30","2026-05-01","2026-05-04","2026-05-05","2026-05-06","2026-05-07"]
["Référence légume","LMR","LMR","LMR","LMR","LMR","LMR","LMR"]
["Légume"]
["Quantité légume"]
["Référence viande","VMR","VMR","VMR","VMR","VMR","VMR","VMR"]
["Viande"]
["Quantité viande","100,00","100,00","100,00","100,00","100,00","100,00","100,00"]
["Référence dessert","DMR01","DMR01","DMR01","DMR01","DMR01","DMR01","DMR01"]
["Dessert","Pomme","Pomme","Pomme","Pomme","Pomme","Pomme","Pomme"]
["Quantité dessert","1,00","1,00","1,00","1,00","1,00","1,00","1,00"]
["Référence jour férié",null,null,"JF04"]
["Jour férié",null,null,"Fête du travail"]
["Propositions menus midi retraite"]
["Numéro du menu","MMR92","MMR93","MMR94","MMR95","MMR96","MMR97","MMR98"]
["Date du menu","2026-05-08","2026-05-11","2026-05-12","2026-05-13","2026-05-14","2026-05-15","2026-05-18"]
["Référence légume","LMR","LMR","LMR","LMR","LMR","LMR","LMR"]
["Légume"]
["Quantité légume"]
["Référence viande","VMR","VMR","VMR","VMR","VMR","VMR","VMR"]
["Viande"]
["Quantité viande","100,00","100,00","100,00","100,00","100,00","100,00","100,00"]
["Référence dessert","DMR01","DMR01","DMR01","DMR01","DMR01","DMR01","DMR01"]
["Dessert","Pomme","Pomme","Pomme","Pomme","Pomme","Pomme","Pomme"]
["Quantité dessert","1,00","1,00","1,00","1,00","1,00","1,00","1,00"]
["Référence jour férié","JF05"]
["Jour férié","Victoire 1945"]
["Propositions menus midi retraite"]
["Numéro du menu","MMR99","MMR100","MMR101","MMR102","MMR103","MMR104","MMR105"]
["Date du menu","2026-05-19","2026-05-20","2026-05-21","2026-05-22","2026-05-25","2026-05-26","2026-05-27"]
["Référence légume","LMR","LMR","LMR","LMR","LMR","LMR","LMR"]
["Légume"]
["Quantité légume"]
["Référence viande","VMR","VMR","VMR","VMR","VMR","VMR","VMR"]
["Viande"]
["Quantité viande","100,00","100,00","100,00","100,00","100,00","100,00","100,00"]
["Référence dessert","DMR01","DMR01","DMR01","DMR01","DMR01","DMR01","DMR01"]
["Dessert","Pomme","Pomme","Pomme","Pomme","Pomme","Pomme","Pomme"]
["Quantité dessert","1,00","1,00","1,00","1,00","1,00","1,00","1,00"]
["Référence jour férié"]
["Jour férié"]
["Propositions menus midi retraite"]
["Numéro du menu","MMR106","MMR107","MMR108","MMR109","MMR110","MMR111","MMR112"]
["Date du menu","2026-05-28","2026-05-29","2026-06-01","2026-06-02","2026-06-03","2026-06-04","2026-06-05"]
["Référence légume","LMR","LMR","LMR","LMR","LMR","LMR","LMR"]
["Légume"]
["Quantité légume"]
["Référence viande","VMR","VMR","VMR","VMR","VMR","VMR","VMR"]
["Viande"]
["Quantité viande","100,00","100,00","100,00","100,00","100,00","100,00","100,00"]
["Référence dessert","DMR01","DMR01","DMR01","DMR01","DMR01","DMR01","DMR01"]
["Dessert","Pomme","Pomme","Pomme","Pomme","Pomme","Pomme","Pomme"]
["Quantité dessert","1,00","1,00","1,00","1,00","1,00","1,00","1,00"]
["Référence jour férié"]
["Jour férié"]
["Propositions menus midi retraite"]
["Numéro du menu","MMR113","MMR114","MMR115","MMR116","MMR117","MMR118","MMR119"]
["Date du menu","2026-06-08","2026-06-09","2026-06-10","2026-06-11","2026-06-12","2026-06-15","2026-06-16"]
["Référence légume","LMR","LMR","LMR","LMR","LMR","LMR","LMR"]
["Légume"]
["Quantité légume"]
["Référence viande","VMR","VMR","VMR","VMR","VMR","VMR","VMR"]
["Viande"]
["Quantité viande","100,00","100,00","100,00","100,00","100,00","100,00","100,00"]
["Référence dessert","DMR01","DMR01","DMR01","DMR01","DMR01","DMR01","DMR01"]
["Dessert","Pomme","Pomme","Pomme","Pomme","Pomme","Pomme","Pomme"]
["Quantité dessert","1,00","1,00","1,00","1,00","1,00","1,00","1,00"]
["Référence jour férié"]
["Jour férié"]
["Propositions menus midi retraite"]
["Numéro du menu","MMR120","MMR121","MMR122","MMR123","MMR124","MMR125","MMR126"]
["Date du menu","2026-06-17","2026-06-18","2026-06-19","2026-06-22","2026-06-23","2026-06-24","2026-06-25"]
["Référence légume","LMR","LMR","LMR","LMR","LMR","LMR","LMR"]
["Légume"]
["Quantité légume"]
["Référence viande","VMR","VMR","VMR","VMR","VMR","VMR","VMR"]
["Viande"]
["Quantité viande","100,00","100,00","100,00","100,00","100,00","100,00","100,00"]
["Référence dessert","DMR01","DMR01","DMR01","DMR01","DMR01","DMR01","DMR01"]
["Dessert","Pomme","Pomme","Pomme","Pomme","Pomme","Pomme","Pomme"]
["Quantité dessert","1,00","1,00","1,00","1,00","1,00","1,00","1,00"]
["Référence jour férié"]
["Jour férié"]
["Propositions menus midi retraite"]
["Numéro du menu","MMR127","MMR128","MMR129","MMR130","MMR131","MMR132","MMR133"]
["Date du menu","2026-06-26","2026-06-29","2026-06-30","2026-07-01","2026-07-02","2026-07-03","2026-07-06"]
["Référence légume","LMR","LMR","LMR","LMR","LMR","LMR","LMR"]
["Légume"]
["Quantité légume"]
["Référence viande","VMR","VMR","VMR","VMR","VMR","VMR","VMR"]
["Viande"]
["Quantité viande","100,00","100,00","100,00","100,00","100,00","100,00","100,00"]
["Référence dessert","DMR01","DMR01","DMR01","DMR01","DMR01","DMR01","DMR01"]
["Dessert","Pomme","Pomme","Pomme","Pomme","Pomme","Pomme","Pomme"]
["Quantité dessert","1,00","1,00","1,00","1,00","1,00","1,00","1,00"]
["Référence jour férié"]
["Jour férié"]
["Propositions menus midi retraite"]
["Numéro du menu","MMR134","MMR135","MMR136","MMR137","MMR138","MMR139","MMR140"]
["Date du menu","2026-07-07","2026-07-08","2026-07-09","2026-07-10","2026-07-13","2026-07-14","2026-07-15"]
["Référence légume","LMR","LMR","LMR","LMR","LMR","LMR","LMR"]
["Légume"]
["Quantité légume"]
["Référence viande","VMR","VMR","VMR","VMR","VMR","VMR","VMR"]
["Viande"]
["Quantité viande","100,00","100,00","100,00","100,00","100,00","100,00","100,00"]
["Référence dessert","DMR01","DMR01","DMR01","DMR01","DMR01","DMR01","DMR01"]
["Dessert","Pomme","Pomme","Pomme","Pomme","Pomme","Pomme","Pomme"]
["Quantité dessert","1,00","1,00","1,00","1,00","1,00","1,00","1,00"]
["Référence jour férié",null,null,null,null,null,"JF09"]
["Jour férié",null,null,null,null,null,"Fête nationale"]
["Propositions menus midi retraite"]
["Numéro du menu","MMR141","MMR142","MMR143","MMR144","MMR145","MMR146","MMR147"]
["Date du menu","2026-07-16","2026-07-17","2026-07-20","2026-07-21","2026-07-22","2026-07-23","2026-07-24"]
["Référence légume","LMR","LMR","LMR","LMR","LMR","LMR","LMR"]
["Légume"]
["Quantité légume"]
["Référence viande","VMR","VMR","VMR","VMR","VMR","VMR","VMR"]
["Viande"]
["Quantité viande","100,00","100,00","100,00","100,00","100,00","100,00","100,00"]
["Référence dessert","DMR01","DMR01","DMR01","DMR01","DMR01","DMR01","DMR01"]
["Dessert","Pomme","Pomme","Pomme","Pomme","Pomme","Pomme","Pomme"]
["Quantité dessert","1,00","1,00","1,00","1,00","1,00","1,00","1,00"]
["Référence jour férié"]
["Jour férié"]
["Propositions menus midi retraite"]
["Numéro du menu","MMR148","MMR149","MMR150","MMR151","MMR152","MMR153","MMR154"]
["Date du menu","2026-07-27","2026-07-28","2026-07-29","2026-07-30","2026-07-31","2026-08-03","2026-08-04"]
["Référence légume","LMR","LMR","LMR","LMR","LMR","LMR","LMR"]
["Légume"]
["Quantité légume"]
["Référence viande","VMR","VMR","VMR","VMR","VMR","VMR","VMR"]
["Viande"]
["Quantité viande","100,00","100,00","100,00","100,00","100,00","100,00","100,00"]
["Référence dessert","DMR01","DMR01","DMR01","DMR01","DMR01","DMR01","DMR01"]
["Dessert","Pomme","Pomme","Pomme","Pomme","Pomme","Pomme","Pomme"]
["Quantité dessert","1,00","1,00","1,00","1,00","1,00","1,00","1,00"]
["Référence jour férié"]
["Jour férié"]
["Propositions menus midi retraite"]
["Numéro du menu","MMR155","MMR156","MMR157","MMR158","MMR159","MMR160","MMR161"]
["Date du menu","2026-08-05","2026-08-06","2026-08-07","2026-08-10","2026-08-11","2026-08-12","2026-08-13"]
["Référence légume","LMR","LMR","LMR","LMR","LMR","LMR","LMR"]
["Légume"]
["Quantité légume"]
["Référence viande","VMR","VMR","VMR","VMR","VMR","VMR","VMR"]
["Viande"]
["Quantité viande","100,00","100,00","100,00","100,00","100,00","100,00","100,00"]
["Référence dessert","DMR01","DMR01","DMR01","DMR01","DMR01","DMR01","DMR01"]
["Dessert","Pomme","Pomme","Pomme","Pomme","Pomme","Pomme","Pomme"]
["Quantité dessert","1,00","1,00","1,00","1,00","1,00","1,00","1,00"]
["Référence jour férié"]
["Jour férié"]
["Propositions menus midi retraite"]
["Numéro du menu","MMR162","MMR163","MMR164","MMR165","MMR166","MMR167","MMR168"]
["Date du menu","2026-08-14","2026-08-17","2026-08-18","2026-08-19","2026-08-20","2026-08-21","2026-08-24"]
["Référence légume","LMR","LMR","LMR","LMR","LMR","LMR","LMR"]
["Légume"]
["Quantité légume"]
["Référence viande","VMR","VMR","VMR","VMR","VMR","VMR","VMR"]
["Viande"]
["Quantité viande","100,00","100,00","100,00","100,00","100,00","100,00","100,00"]
["Référence dessert","DMR01","DMR01","DMR01","DMR01","DMR01","DMR01","DMR01"]
["Dessert","Pomme","Pomme","Pomme","Pomme","Pomme","Pomme","Pomme"]
["Quantité dessert","1,00","1,00","1,00","1,00","1,00","1,00","1,00"]
["Référence jour férié"]
["Jour férié"]
["Propositions menus midi retraite"]
["Numéro du menu","MMR169","MMR170","MMR171","MMR172","MMR173","MMR174","MMR175"]
["Date du menu","2026-08-25","2026-08-26","2026-08-27","2026-08-28","2026-08-31","2026-09-01","2026-09-02"]
["Référence légume","LMR","LMR","LMR","LMR","LMR","LMR","LMR"]
["Légume"]
["Quantité légume"]
["Référence viande","VMR","VMR","VMR","VMR","VMR","VMR","VMR"]
["Viande"]
["Quantité viande","100,00","100,00","100,00","100,00","100,00","100,00","100,00"]
["Référence dessert","DMR01","DMR01","DMR01","DMR01","DMR01","DMR01","DMR01"]
["Dessert","Pomme","Pomme","Pomme","Pomme","Pomme","Pomme","Pomme"]
["Quantité dessert","1,00","1,00","1,00","1,00","1,00","1,00","1,00"]
["Référence jour férié"]
["Jour férié"]
["Propositions menus midi retraite"]
["Numéro du menu","MMR176","MMR177","MMR178","MMR179","MMR180","MMR181","MMR182"]
["Date du menu","2026-09-03","2026-09-04","2026-09-07","2026-09-08","2026-09-09","2026-09-10","2026-09-11"]
["Référence légume","LMR","LMR","LMR","LMR","LMR","LMR","LMR"]
["Légume"]
["Quantité légume"]
["Référence viande","VMR","VMR","VMR","VMR","VMR","VMR","VMR"]
["Viande"]
["Quantité viande","100,00","100,00","100,00","100,00","100,00","100,00","100,00"]
["Référence dessert","DMR01","DMR01","DMR01","DMR01","DMR01","DMR01","DMR01"]
["Dessert","Pomme","Pomme","Pomme","Pomme","Pomme","Pomme","Pomme"]
["Quantité dessert","1,00","1,00","1,00","1,00","1,00","1,00","1,00"]
["Référence jour férié"]
["Jour férié"]
["Propositions menus midi retraite"]
["Numéro du menu","MMR183","MMR184","MMR185","MMR186","MMR187","MMR188","MMR189"]
["Date du menu","2026-09-14","2026-09-15","2026-09-16","2026-09-17","2026-09-18","2026-09-21","2026-09-22"]
["Référence légume","LMR","LMR","LMR","LMR","LMR","LMR","LMR"]
["Légume"]
["Quantité légume"]
["Référence viande","VMR","VMR","VMR","VMR","VMR","VMR","VMR"]
["Viande"]
["Quantité viande","100,00","100,00","100,00","100,00","100,00","100,00","100,00"]
["Référence dessert","DMR01","DMR01","DMR01","DMR01","DMR01","DMR01","DMR01"]
["Dessert","Pomme","Pomme","Pomme","Pomme","Pomme","Pomme","Pomme"]
["Quantité dessert","1,00","1,00","1,00","1,00","1,00","1,00","1,00"]
["Référence jour férié"]
["Jour férié"]
["Propositions menus midi retraite"]
["Numéro du menu","MMR190","MMR191","MMR192","MMR193","MMR194","MMR195","MMR196"]
["Date du menu","2026-09-23","2026-09-24","2026-09-25","2026-09-28","2026-09-29","2026-09-30","2026-10-01"]
["Référence légume","LMR","LMR","LMR","LMR","LMR","LMR","LMR"]
["Légume"]
["Quantité légume"]
["Référence viande","VMR","VMR","VMR","VMR","VMR","VMR","VMR"]
["Viande"]
["Quantité viande","100,00","100,00","100,00","100,00","100,00","100,00","100,00"]
["Référence dessert","DMR01","DMR01","DMR01","DMR01","DMR01","DMR01","DMR01"]
["Dessert","Pomme","Pomme","Pomme","Pomme","Pomme","Pomme","Pomme"]
["Quantité dessert","1,00","1,00","1,00","1,00","1,00","1,00","1,00"]
["Référence jour férié"]
["Jour férié"]
["Propositions menus midi retraite"]
["Numéro du menu","MMR197","MMR198","MMR199","MMR200","MMR201","MMR202","MMR203"]
["Date du menu","2026-10-02","2026-10-05","2026-10-06","2026-10-07","2026-10-08","2026-10-09","2026-10-12"]
["Référence légume","LMR","LMR","LMR","LMR","LMR","LMR","LMR"]
["Légume"]
["Quantité légume"]
["Référence viande","VMR","VMR","VMR","VMR","VMR","VMR","VMR"]
["Viande"]
["Quantité viande","100,00","100,00","100,00","100,00","100,00","100,00","100,00"]
["Référence dessert","DMR01","DMR01","DMR01","DMR01","DMR01","DMR01","DMR01"]
["Dessert","Pomme","Pomme","Pomme","Pomme","Pomme","Pomme","Pomme"]
["Quantité dessert","1,00","1,00","1,00","1,00","1,00","1,00","1,00"]
["Référence jour férié"]
["Jour férié"]
["Propositions menus midi retraite"]
["Numéro du menu","MMR204","MMR205","MMR206","MMR207","MMR208","MMR209","MMR210"]
["Date du menu","2026-10-13","2026-10-14","2026-10-15","2026-10-16","2026-10-19","2026-10-20","2026-10-21"]
["Référence légume","LMR","LMR","LMR","LMR","LMR","LMR","LMR"]
["Légume"]
["Quantité légume"]
["Référence viande","VMR","VMR","VMR","VMR","VMR","VMR","VMR"]
["Viande"]
["Quantité viande","100,00","100,00","100,00","100,00","100,00","100,00","100,00"]
["Référence dessert","DMR01","DMR01","DMR01","DMR01","DMR01","DMR01","DMR01"]
["Dessert","Pomme","Pomme","Pomme","Pomme","Pomme","Pomme","Pomme"]
["Quantité dessert","1,00","1,00","1,00","1,00","1,00","1,00","1,00"]
["Référence jour férié"]
["Jour férié"]
["Propositions menus midi retraite"]
["Numéro du menu","MMR211","MMR212","MMR213","MMR214","MMR215","MMR216","MMR217"]
["Date du menu","2026-10-22","2026-10-23","2026-10-26","2026-10-27","2026-10-28","2026-10-29","2026-10-30"]
["Référence légume","LMR","LMR","LMR","LMR","LMR","LMR","LMR"]
["Légume"]
["Quantité légume"]
["Référence viande","VMR","VMR","VMR","VMR","VMR","VMR","VMR"]
["Viande"]
["Quantité viande","100,00","100,00","100,00","100,00","100,00","100,00","100,00"]
["Référence dessert","DMR01","DMR01","DMR01","DMR01","DMR01","DMR01","DMR01"]
["Dessert","Pomme","Pomme","Pomme","Pomme","Pomme","Pomme","Pomme"]
["Quantité dessert","1,00","1,00","1,00","1,00","1,00","1,00","1,00"]
["Référence jour férié"]
["Jour férié"]
["Propositions menus midi retraite"]
["Numéro du menu","MMR218","MMR219","MMR220","MMR221","MMR222","MMR223","MMR224"]
["Date du menu","2026-11-02","2026-11-03","2026-11-04","2026-11-05","2026-11-06","2026-11-09","2026-11-10"]
["Référence légume","LMR","LMR","LMR","LMR","LMR","LMR","LMR"]
["Légume"]
["Quantité légume"]
["Référence viande","VMR","VMR","VMR","VMR","VMR","VMR","VMR"]
["Viande"]
["Quantité viande","100,00","100,00","100,00","100,00","100,00","100,00","100,00"]
["Référence dessert","DMR01","DMR01","DMR01","DMR01","DMR01","DMR01","DMR01"]
["Dessert","Pomme","Pomme","Pomme","Pomme","Pomme","Pomme","Pomme"]
["Quantité dessert","1,00","1,00","1,00","1,00","1,00","1,00","1,00"]
["Référence jour férié"]
["Jour férié"]
["Propositions menus midi retraite"]
["Numéro du menu","MMR225","MMR226","MMR227","MMR228","MMR229","MMR230","MMR231"]
["Date du menu","2026-11-11","2026-11-12","2026-11-13","2026-11-16","2026-11-17","2026-11-18","2026-11-19"]
["Référence légume","LMR","LMR","LMR","LMR","LMR","LMR","LMR"]
["Légume"]
["Quantité légume"]
["Référence viande","VMR","VMR","VMR","VMR","VMR","VMR","VMR"]
["Viande"]
["Quantité viande","100,00","100,00","100,00","100,00","100,00","100,00","100,00"]
["Référence dessert","DMR01","DMR01","DMR01","DMR01","DMR01","DMR01","DMR01"]
["Dessert","Pomme","Pomme","Pomme","Pomme","Pomme","Pomme","Pomme"]
["Quantité dessert","1,00","1,00","1,00","1,00","1,00","1,00","1,00"]
["Référence jour férié","JF12"]
["Jour férié","Armistice 1918"]
["Propositions menus midi retraite"]
["Numéro du menu","MMR232","MMR233","MMR234","MMR235","MMR236","MMR237","MMR238"]
["Date du menu","2026-11-20","2026-11-23","2026-11-24","2026-11-25","2026-11-26","2026-11-27","2026-11-30"]
["Référence légume","LMR","LMR","LMR","LMR","LMR","LMR","LMR"]
["Légume"]
["Quantité légume"]
["Référence viande","VMR","VMR","VMR","VMR","VMR","VMR","VMR"]
["Viande"]
["Quantité viande","100,00","100,00","100,00","100,00","100,00","100,00","100,00"]
["Référence dessert","DMR01","DMR01","DMR01","DMR01","DMR01","DMR01","DMR01"]
["Dessert","Pomme","Pomme","Pomme","Pomme","Pomme","Pomme","Pomme"]
["Quantité dessert","1,00","1,00","1,00","1,00","1,00","1,00","1,00"]
["Référence jour férié"]
["Jour férié"]
["Propositions menus midi retraite"]
["Numéro du menu","MMR239","MMR240","MMR241","MMR242","MMR243","MMR244","MMR245"]
["Date du menu","2026-12-01","2026-12-02","2026-12-03","2026-12-04","2026-12-07","2026-12-08","2026-12-09"]
["Référence légume","LMR","LMR","LMR","LMR","LMR","LMR","LMR"]
["Légume"]
["Quantité légume"]
["Référence viande","VMR","VMR","VMR","VMR","VMR","VMR","VMR"]
["Viande"]
["Quantité viande","100,00","100,00","100,00","100,00","100,00","100,00","100,00"]
["Référence dessert","DMR01","DMR01","DMR01","DMR01","DMR01","DMR01","DMR01"]
["Dessert","Pomme","Pomme","Pomme","Pomme","Pomme","Pomme","Pomme"]
["Quantité dessert","1,00","1,00","1,00","1,00","1,00","1,00","1,00"]
["Référence jour férié"]
["Jour férié"]
["Propositions menus midi retraite"]
["Numéro du menu","MMR246","MMR247","MMR248","MMR249","MMR250","MMR251","MMR252"]
["Date du menu","2026-12-10","2026-12-11","2026-12-14","2026-12-15","2026-12-16","2026-12-17","2026-12-18"]
["Référence légume","LMR","LMR","LMR","LMR","LMR","LMR","LMR"]
["Légume"]
["Quantité légume"]
["Référence viande","VMR","VMR","VMR","VMR","VMR","VMR","VMR"]
["Viande"]
["Quantité viande","100,00","100,00","100,00","100,00","100,00","100,00","100,00"]
["Référence dessert","DMR01","DMR01","DMR01","DMR01","DMR01","DMR01","DMR01"]
["Dessert","Pomme","Pomme","Pomme","Pomme","Pomme","Pomme","Pomme"]
["Quantité dessert","1,00","1,00","1,00","1,00","1,00","1,00","1,00"]
["Référence jour férié"]
["Jour férié"]
["Propositions menus midi retraite"]
["Numéro du menu","MMR253","MMR254","MMR255","MMR256","MMR257","MMR258","MMR259"]
["Date du menu","2026-12-21","2026-12-22","2026-12-23","2026-12-24","2026-12-25","2026-12-28","2026-12-29"]
["Référence légume","LMR","LMR","LMR","LMR","LMR","LMR","LMR"]
["Légume"]
["Quantité légume"]
["Référence viande","VMR","VMR","VMR","VMR","VMR","VMR","VMR"]
["Viande"]
["Quantité viande","100,00","100,00","100,00","100,00","100,00","100,00","100,00"]
["Référence dessert","DMR01","DMR01","DMR01","DMR01","DMR01","DMR01","DMR01"]
["Dessert","Pomme","Pomme","Pomme","Pomme","Pomme","Pomme","Pomme"]
["Quantité dessert","1,00","1,00","1,00","1,00","1,00","1,00","1,00"]
["Référence jour férié",null,null,null,null,"JF13"]
["Jour férié",null,null,null,null,"Noël"]
["Propositions menus midi retraite"]
["Numéro du menu","MMR260","MMR261"]
["Date du menu","2026-12-30","2026-12-31"]
["Référence légume","LMR","LMR"]
["Légume"]
["Quantité légume"]
["Référence viande","VMR","VMR"]
["Viande"]
["Quantité viande","100,00","100,00"]
["Référence dessert","DMR01","DMR01"]
["Dessert","Pomme","Pomme"]
["Quantité dessert","1,00","1,00"]
["Référence jour férié"]
["Jour férié"]

{"sheet":"Propositions menus journaliers","index":3,"n_rows":901,"n_cols":8,"rows_kept":901,"cut":false,"hidden":false,"merged":[]}
["Propositions menus midi retraite"]
["Numéro du menu","MJ01","MJ02","MJ03","MJ04","MJ05","MJ06","MJ07"]
["Date du menu","2026-01-01","2026-01-02","2026-01-05","2026-01-06","2026-01-07","2026-01-08","2026-01-09"]
["Référence légume","LMJ","LMJ","LMJ","LMJ","LMJ","LMJ","LMJ"]
["Légume"]
["Quantité légume"]
["Référence légume 2)","VMJ","VMJ","VMJ","VMJ","VMJ","VMJ","VMJ"]
["Légume 2"]
["Quantité légume 2","100,00","100,00","100,00","100,00","100,00","100,00","100,00"]
["Référence viande","DMR01","DMR01","DMR01","DMR01","DMR01","DMR01","DMR01"]
["Viande","Pomme","Pomme","Pomme","Pomme","Pomme","Pomme","Pomme"]
["Quantité viande","1,00","1,00","1,00","1,00","1,00","1,00","1,00"]
["Référence dessert","JF01"]
["Dessert","Jour de l'an"]
["Quantité dessert"]
["Référence jour férié"]
["Jour férié"]
["Propositions menus midi retraite"]
["Numéro du menu","MJ08","MJ09","MJ10","MJ11","MJ12","MJ13","MJ14"]
["Date du menu","2026-01-12","2026-01-13","2026-01-14","2026-01-15","2026-01-16","2026-01-19","2026-01-20"]
["Référence légume","LMJ","LMJ","LMJ","LMJ","LMJ","LMJ","LMJ"]
["Légume"]
["Quantité légume"]
["Référence légume 2)","VMJ","VMJ","VMJ","VMJ","VMJ","VMJ","VMJ"]
["Légume 2"]
["Quantité légume 2","100,00","100,00","100,00","100,00","100,00","100,00","100,00"]
["Référence viande","DMR01","DMR01","DMR01","DMR01","DMR01","DMR01","DMR01"]
["Viande","Pomme","Pomme","Pomme","Pomme","Pomme","Pomme","Pomme"]
["Quantité viande","1,00","1,00","1,00","1,00","1,00","1,00","1,00"]
["Référence dessert"]
["Dessert"]
["Quantité dessert"]
["Référence jour férié"]
["Jour férié"]
["Propositions menus midi retraite"]
["Numéro du menu","MJ15","MJ16","MJ17","MJ18","MJ19","MJ20","MJ21"]
["Date du menu","2026-01-21","2026-01-22","2026-01-23","2026-01-26","2026-01-27","2026-01-28","2026-01-29"]
["Référence légume","LMJ","LMJ","LMJ","LMJ","LMJ","LMJ","LMJ"]
["Légume"]
["Quantité légume"]
["Référence légume 2)","VMJ","VMJ","VMJ","VMJ","VMJ","VMJ","VMJ"]
["Légume 2"]
["Quantité légume 2","100,00","100,00","100,00","100,00","100,00","100,00","100,00"]
["Référence viande","DMR01","DMR01","DMR01","DMR01","DMR01","DMR01","DMR01"]
["Viande","Pomme","Pomme","Pomme","Pomme","Pomme","Pomme","Pomme"]
["Quantité viande","1,00","1,00","1,00","1,00","1,00","1,00","1,00"]
["Référence dessert"]
["Dessert"]
["Quantité dessert"]
["Référence jour férié"]
["Jour férié"]
["Propositions menus midi retraite"]
["Numéro du menu","MJ22","MJ23","MJ24","MJ25","MJ26","MJ27","MJ28"]
["Date du menu","2026-01-30","2026-02-02","2026-02-03","2026-02-04","2026-02-05","2026-02-06","2026-02-09"]
["Référence légume","LMJ","LMJ","LMJ","LMJ","LMJ","LMJ","LMJ"]
["Légume"]
["Quantité légume"]
["Référence légume 2)","VMJ","VMJ","VMJ","VMJ","VMJ","VMJ","VMJ"]
["Légume 2"]
["Quantité légume 2","100,00","100,00","100,00","100,00","100,00","100,00","100,00"]
["Référence viande","DMR01","DMR01","DMR01","DMR01","DMR01","DMR01","DMR01"]
["Viande","Pomme","Pomme","Pomme","Pomme","Pomme","Pomme","Pomme"]
["Quantité viande","1,00","1,00","1,00","1,00","1,00","1,00","1,00"]
["Référence dessert"]
["Dessert"]
["Quantité dessert"]
["Référence jour férié"]
["Jour férié"]
["Propositions menus midi retraite"]
["Numéro du menu","MJ29","MJ30","MJ31","MJ32","MJ33","MJ34","MJ35"]
["Date du menu","2026-02-10","2026-02-11","2026-02-12","2026-02-13","2026-02-16","2026-02-17","2026-02-18"]
["Référence légume","LMJ","LMJ","LMJ","LMJ","LMJ","LMJ","LMJ"]
["Légume"]
["Quantité légume"]
["Référence légume 2)","VMJ","VMJ","VMJ","VMJ","VMJ","VMJ","VMJ"]
["Légume 2"]
["Quantité légume 2","100,00","100,00","100,00","100,00","100,00","100,00","100,00"]
["Référence viande","DMR01","DMR01","DMR01","DMR01","DMR01","DMR01","DMR01"]
["Viande","Pomme","Pomme","Pomme","Pomme","Pomme","Pomme","Pomme"]
["Quantité viande","1,00","1,00","1,00","1,00","1,00","1,00","1,00"]
["Référence dessert"]
["Dessert"]
["Quantité dessert"]
["Référence jour férié"]
["Jour férié"]
["Propositions menus midi retraite"]
["Numéro du menu","MJ36","MJ37","MJ38","MJ39","MJ40","MJ41","MJ42"]
["Date du menu","2026-02-19","2026-02-20","2026-02-23","2026-02-24","2026-02-25","2026-02-26","2026-02-27"]
["Référence légume","LMJ","LMJ","LMJ","LMJ","LMJ","LMJ","LMJ"]
["Légume"]
["Quantité légume"]
["Référence légume 2)","VMJ","VMJ","VMJ","VMJ","VMJ","VMJ","VMJ"]
["Légume 2"]
["Quantité légume 2","100,00","100,00","100,00","100,00","100,00","100,00","100,00"]
["Référence viande","DMR01","DMR01","DMR01","DMR01","DMR01","DMR01","DMR01"]
["Viande","Pomme","Pomme","Pomme","Pomme","Pomme","Pomme","Pomme"]
["Quantité viande","1,00","1,00","1,00","1,00","1,00","1,00","1,00"]
["Référence dessert"]
["Dessert"]
["Quantité dessert"]
["Référence jour férié"]
["Jour férié"]
["Propositions menus midi retraite"]
["Numéro du menu","MJ43","MJ44","MJ45","MJ46","MJ47","MJ48","MJ49"]
["Date du menu","2026-03-02","2026-03-03","2026-03-04","2026-03-05","2026-03-06","2026-03-09","2026-03-10"]
["Référence légume","LMJ","LMJ","LMJ","LMJ","LMJ","LMJ","LMJ"]
["Légume"]
["Quantité légume"]
["Référence légume 2)","VMJ","VMJ","VMJ","VMJ","VMJ","VMJ","VMJ"]
["Légume 2"]
["Quantité légume 2","100,00","100,00","100,00","100,00","100,00","100,00","100,00"]
["Référence viande","DMR01","DMR01","DMR01","DMR01","DMR01","DMR01","DMR01"]
["Viande","Pomme","Pomme","Pomme","Pomme","Pomme","Pomme","Pomme"]
["Quantité viande","1,00","1,00","1,00","1,00","1,00","1,00","1,00"]
["Référence dessert"]
["Dessert"]
["Quantité dessert"]
["Référence jour férié"]
["Jour férié"]
["Propositions menus midi retraite"]
["Numéro du menu","MJ50","MJ51","MJ52","MJ53","MJ54","MJ55","MJ56"]
["Date du menu","2026-03-11","2026-03-12","2026-03-13","2026-03-16","2026-03-17","2026-03-18","2026-03-19"]
["Référence légume","LMJ","LMJ","LMJ","LMJ","LMJ","LMJ","LMJ"]
["Légume"]
["Quantité légume"]
["Référence légume 2)","VMJ","VMJ","VMJ","VMJ","VMJ","VMJ","VMJ"]
["Légume 2"]
["Quantité légume 2","100,00","100,00","100,00","100,00","100,00","100,00","100,00"]
["Référence viande","DMR01","DMR01","DMR01","DMR01","DMR01","DMR01","DMR01"]
["Viande","Pomme","Pomme","Pomme","Pomme","Pomme","Pomme","Pomme"]
["Quantité viande","1,00","1,00","1,00","1,00","1,00","1,00","1,00"]
["Référence dessert"]
["Dessert"]
["Quantité dessert"]
["Référence jour férié"]
["Jour férié"]
["Propositions menus midi retraite"]
["Numéro du menu","MJ57","MJ58","MJ59","MJ60","MJ61","MJ62","MJ63"]
["Date du menu","2026-03-20","2026-03-23","2026-03-24","2026-03-25","2026-03-26","2026-03-27","2026-03-30"]
["Référence légume","LMJ","LMJ","LMJ","LMJ","LMJ","LMJ","LMJ"]
["Légume"]
["Quantité légume"]
["Référence légume 2)","VMJ","VMJ","VMJ","VMJ","VMJ","VMJ","VMJ"]
["Légume 2"]
["Quantité légume 2","100,00","100,00","100,00","100,00","100,00","100,00","100,00"]
["Référence viande","DMR01","DMR01","DMR01","DMR01","DMR01","DMR01","DMR01"]
["Viande","Pomme","Pomme","Pomme","Pomme","Pomme","Pomme","Pomme"]
["Quantité viande","1,00","1,00","1,00","1,00","1,00","1,00","1,00"]
["Référence dessert"]
["Dessert"]
["Quantité dessert"]
["Référence jour férié"]
["Jour férié"]
["Propositions menus midi retraite"]
["Numéro du menu","MJ64","MJ65","MJ66","MJ67","MJ68","MJ69","MJ70"]
["Date du menu","2026-03-31","2026-04-01","2026-04-02","2026-04-03","2026-04-06","2026-04-07","2026-04-08"]
["Référence légume","LMJ","LMJ","LMJ","LMJ","LMJ","LMJ","LMJ"]
["Légume"]
["Quantité légume"]
["Référence légume 2)","VMJ","VMJ","VMJ","VMJ","VMJ","VMJ","VMJ"]
["Légume 2"]
["Quantité légume 2","100,00","100,00","100,00","100,00","100,00","100,00","100,00"]
["Référence viande","DMR01","DMR01","DMR01","DMR01","DMR01","DMR01","DMR01"]
["Viande","Pomme","Pomme","Pomme","Pomme","Pomme","Pomme","Pomme"]
["Quantité viande","1,00","1,00","1,00","1,00","1,00","1,00","1,00"]
["Référence dessert"]
["Dessert"]
["Quantité dessert"]
["Référence jour férié"]
["Jour férié"]
["Propositions menus midi retraite"]
["Numéro du menu","MJ71","MJ72","MJ73","MJ74","MJ75","MJ76","MJ77"]
["Date du menu","2026-04-09","2026-04-10","2026-04-13","2026-04-14","2026-04-15","2026-04-16","2026-04-17"]
["Référence légume","LMJ","LMJ","LMJ","LMJ","LMJ","LMJ","LMJ"]
["Légume"]
["Quantité légume"]
["Référence légume 2)","VMJ","VMJ","VMJ","VMJ","VMJ","VMJ","VMJ"]
["Légume 2"]
["Quantité légume 2","100,00","100,00","100,00","100,00","100,00","100,00","100,00"]
["Référence viande","DMR01","DMR01","DMR01","DMR01","DMR01","DMR01","DMR01"]
["Viande","Pomme","Pomme","Pomme","Pomme","Pomme","Pomme","Pomme"]
["Quantité viande","1,00","1,00","1,00","1,00","1,00","1,00","1,00"]
["Référence dessert"]
["Dessert"]
["Quantité dessert"]
["Référence jour férié"]
["Jour férié"]
["Propositions menus midi retraite"]
["Numéro du menu","MJ78","MJ79","MJ80","MJ81","MJ82","MJ83","MJ84"]
["Date du menu","2026-04-20","2026-04-21","2026-04-22","2026-04-23","2026-04-24","2026-04-27","2026-04-28"]
["Référence légume","LMJ","LMJ","LMJ","LMJ","LMJ","LMJ","LMJ"]
["Légume"]
["Quantité légume"]
["Référence légume 2)","VMJ","VMJ","VMJ","VMJ","VMJ","VMJ","VMJ"]
["Légume 2"]
["Quantité légume 2","100,00","100,00","100,00","100,00","100,00","100,00","100,00"]
["Référence viande","DMR01","DMR01","DMR01","DMR01","DMR01","DMR01","DMR01"]
["Viande","Pomme","Pomme","Pomme","Pomme","Pomme","Pomme","Pomme"]
["Quantité viande","1,00","1,00","1,00","1,00","1,00","1,00","1,00"]
["Référence dessert"]
["Dessert"]
["Quantité dessert"]
["Référence jour férié"]
["Jour férié"]
["Propositions menus midi retraite"]
["Numéro du menu","MJ85","MJ86","MJ87","MJ88","MJ89","MJ90","MJ91"]
["Date du menu","2026-04-29","2026-04-30","2026-05-01","2026-05-04","2026-05-05","2026-05-06","2026-05-07"]
["Référence légume","LMJ","LMJ","LMJ","LMJ","LMJ","LMJ","LMJ"]
["Légume"]
["Quantité légume"]
["Référence légume 2)","VMJ","VMJ","VMJ","VMJ","VMJ","VMJ","VMJ"]
["Légume 2"]
["Quantité légume 2","100,00","100,00","100,00","100,00","100,00","100,00","100,00"]
["Référence viande","DMR01","DMR01","DMR01","DMR01","DMR01","DMR01","DMR01"]
["Viande","Pomme","Pomme","Pomme","Pomme","Pomme","Pomme","Pomme"]
["Quantité viande","1,00","1,00","1,00","1,00","1,00","1,00","1,00"]
["Référence dessert",null,null,"JF04"]
["Dessert",null,null,"Fête du travail"]
["Quantité dessert"]
["Référence jour férié"]
["Jour férié"]
["Propositions menus midi retraite"]
["Numéro du menu","MJ92","MJ93","MJ94","MJ95","MJ96","MJ97","MJ98"]
["Date du menu","2026-05-08","2026-05-11","2026-05-12","2026-05-13","2026-05-14","2026-05-15","2026-05-18"]
["Référence légume","LMJ","LMJ","LMJ","LMJ","LMJ","LMJ","LMJ"]
["Légume"]
["Quantité légume"]
["Référence légume 2)","VMJ","VMJ","VMJ","VMJ","VMJ","VMJ","VMJ"]
["Légume 2"]
["Quantité légume 2","100,00","100,00","100,00","100,00","100,00","100,00","100,00"]
["Référence viande","DMR01","DMR01","DMR01","DMR01","DMR01","DMR01","DMR01"]
["Viande","Pomme","Pomme","Pomme","Pomme","Pomme","Pomme","Pomme"]
["Quantité viande","1,00","1,00","1,00","1,00","1,00","1,00","1,00"]
["Référence dessert","JF05"]
["Dessert","Victoire 1945"]
["Quantité dessert"]
["Référence jour férié"]
["Jour férié"]
["Propositions menus midi retraite"]
["Numéro du menu","MJ99","MJ100","MJ101","MJ102","MJ103","MJ104","MJ105"]
["Date du menu","2026-05-19","2026-05-20","2026-05-21","2026-05-22","2026-05-25","2026-05-26","2026-05-27"]
["Référence légume","LMJ","LMJ","LMJ","LMJ","LMJ","LMJ","LMJ"]
["Légume"]
["Quantité légume"]
["Référence légume 2)","VMJ","VMJ","VMJ","VMJ","VMJ","VMJ","VMJ"]
["Légume 2"]
["Quantité légume 2","100,00","100,00","100,00","100,00","100,00","100,00","100,00"]
["Référence viande","DMR01","DMR01","DMR01","DMR01","DMR01","DMR01","DMR01"]
["Viande","Pomme","Pomme","Pomme","Pomme","Pomme","Pomme","Pomme"]
["Quantité viande","1,00","1,00","1,00","1,00","1,00","1,00","1,00"]
["Référence dessert"]
["Dessert"]
["Quantité dessert"]
["Référence jour férié"]
["Jour férié"]
["Propositions menus midi retraite"]
["Numéro du menu","MJ106","MJ107","MJ108","MJ109","MJ110","MJ111","MJ112"]
["Date du menu","2026-05-28","2026-05-29","2026-06-01","2026-06-02","2026-06-03","2026-06-04","2026-06-05"]
["Référence légume","LMJ","LMJ","LMJ","LMJ","LMJ","LMJ","LMJ"]
["Légume"]
["Quantité légume"]
["Référence légume 2)","VMJ","VMJ","VMJ","VMJ","VMJ","VMJ","VMJ"]
["Légume 2"]
["Quantité légume 2","100,00","100,00","100,00","100,00","100,00","100,00","100,00"]
["Référence viande","DMR01","DMR01","DMR01","DMR01","DMR01","DMR01","DMR01"]
["Viande","Pomme","Pomme","Pomme","Pomme","Pomme","Pomme","Pomme"]
["Quantité viande","1,00","1,00","1,00","1,00","1,00","1,00","1,00"]
["Référence dessert"]
["Dessert"]
["Quantité dessert"]
["Référence jour férié"]
["Jour férié"]
["Propositions menus midi retraite"]
["Numéro du menu","MJ113","MJ114","MJ115","MJ116","MJ117","MJ118","MJ119"]
["Date du menu","2026-06-08","2026-06-09","2026-06-10","2026-06-11","2026-06-12","2026-06-15","2026-06-16"]
["Référence légume","LMJ","LMJ","LMJ","LMJ","LMJ","LMJ","LMJ"]
["Légume"]
["Quantité légume"]
["Référence légume 2)","VMJ","VMJ","VMJ","VMJ","VMJ","VMJ","VMJ"]
["Légume 2"]
["Quantité légume 2","100,00","100,00","100,00","100,00","100,00","100,00","100,00"]
["Référence viande","DMR01","DMR01","DMR01","DMR01","DMR01","DMR01","DMR01"]
["Viande","Pomme","Pomme","Pomme","Pomme","Pomme","Pomme","Pomme"]
["Quantité viande","1,00","1,00","1,00","1,00","1,00","1,00","1,00"]
["Référence dessert"]
["Dessert"]
["Quantité dessert"]
["Référence jour férié"]
["Jour férié"]
["Propositions menus midi retraite"]
["Numéro du menu","MJ120","MJ121","MJ122","MJ123","MJ124","MJ125","MJ126"]
["Date du menu","2026-06-17","2026-06-18","2026-06-19","2026-06-22","2026-06-23","2026-06-24","2026-06-25"]
["Référence légume","LMJ","LMJ","LMJ","LMJ","LMJ","LMJ","LMJ"]
["Légume"]
["Quantité légume"]
["Référence légume 2)","VMJ","VMJ","VMJ","VMJ","VMJ","VMJ","VMJ"]
["Légume 2"]
["Quantité légume 2","100,00","100,00","100,00","100,00","100,00","100,00","100,00"]
["Référence viande","DMR01","DMR01","DMR01","DMR01","DMR01","DMR01","DMR01"]
["Viande","Pomme","Pomme","Pomme","Pomme","Pomme","Pomme","Pomme"]
["Quantité viande","1,00","1,00","1,00","1,00","1,00","1,00","1,00"]
["Référence dessert"]
["Dessert"]
["Quantité dessert"]
["Référence jour férié"]
["Jour férié"]
["Propositions menus midi retraite"]
["Numéro du menu","MJ127","MJ128","MJ129","MJ130","MJ131","MJ132","MJ133"]
["Date du menu","2026-06-26","2026-06-29","2026-06-30","2026-07-01","2026-07-02","2026-07-03","2026-07-06"]
["Référence légume","LMJ","LMJ","LMJ","LMJ","LMJ","LMJ","LMJ"]
["Légume"]
["Quantité légume"]
["Référence légume 2)","VMJ","VMJ","VMJ","VMJ","VMJ","VMJ","VMJ"]
["Légume 2"]
["Quantité légume 2","100,00","100,00","100,00","100,00","100,00","100,00","100,00"]
["Référence viande","DMR01","DMR01","DMR01","DMR01","DMR01","DMR01","DMR01"]
["Viande","Pomme","Pomme","Pomme","Pomme","Pomme","Pomme","Pomme"]
["Quantité viande","1,00","1,00","1,00","1,00","1,00","1,00","1,00"]
["Référence dessert"]
["Dessert"]
["Quantité dessert"]
["Référence jour férié"]
["Jour férié"]
["Propositions menus midi retraite"]
["Numéro du menu","MJ134","MJ135","MJ136","MJ137","MJ138","MJ139","MJ140"]
["Date du menu","2026-07-07","2026-07-08","2026-07-09","2026-07-10","2026-07-13","2026-07-14","2026-07-15"]
["Référence légume","LMJ","LMJ","LMJ","LMJ","LMJ","LMJ","LMJ"]
["Légume"]
["Quantité légume"]
["Référence légume 2)","VMJ","VMJ","VMJ","VMJ","VMJ","VMJ","VMJ"]
["Légume 2"]
["Quantité légume 2","100,00","100,00","100,00","100,00","100,00","100,00","100,00"]
["Référence viande","DMR01","DMR01","DMR01","DMR01","DMR01","DMR01","DMR01"]
["Viande","Pomme","Pomme","Pomme","Pomme","Pomme","Pomme","Pomme"]
["Quantité viande","1,00","1,00","1,00","1,00","1,00","1,00","1,00"]
["Référence dessert",null,null,null,null,null,"JF09"]
["Dessert",null,null,null,null,null,"Fête nationale"]
["Quantité dessert"]
["Référence jour férié"]
["Jour férié"]
["Propositions menus midi retraite"]
["Numéro du menu","MJ141","MJ142","MJ143","MJ144","MJ145","MJ146","MJ147"]
["Date du menu","2026-07-16","2026-07-17","2026-07-20","2026-07-21","2026-07-22","2026-07-23","2026-07-24"]
["Référence légume","LMJ","LMJ","LMJ","LMJ","LMJ","LMJ","LMJ"]
["Légume"]
["Quantité légume"]
["Référence légume 2)","VMJ","VMJ","VMJ","VMJ","VMJ","VMJ","VMJ"]
["Légume 2"]
["Quantité légume 2","100,00","100,00","100,00","100,00","100,00","100,00","100,00"]
["Référence viande","DMR01","DMR01","DMR01","DMR01","DMR01","DMR01","DMR01"]
["Viande","Pomme","Pomme","Pomme","Pomme","Pomme","Pomme","Pomme"]
["Quantité viande","1,00","1,00","1,00","1,00","1,00","1,00","1,00"]
["Référence dessert"]
["Dessert"]
["Quantité dessert"]
["Référence jour férié"]
["Jour férié"]
["Propositions menus midi retraite"]
["Numéro du menu","MJ148","MJ149","MJ150","MJ151","MJ152","MJ153","MJ154"]
["Date du menu","2026-07-27","2026-07-28","2026-07-29","2026-07-30","2026-07-31","2026-08-03","2026-08-04"]
["Référence légume","LMJ","LMJ","LMJ","LMJ","LMJ","LMJ","LMJ"]
["Légume"]
["Quantité légume"]
["Référence légume 2)","VMJ","VMJ","VMJ","VMJ","VMJ","VMJ","VMJ"]
["Légume 2"]
["Quantité légume 2","100,00","100,00","100,00","100,00","100,00","100,00","100,00"]
["Référence viande","DMR01","DMR01","DMR01","DMR01","DMR01","DMR01","DMR01"]
["Viande","Pomme","Pomme","Pomme","Pomme","Pomme","Pomme","Pomme"]
["Quantité viande","1,00","1,00","1,00","1,00","1,00","1,00","1,00"]
["Référence dessert"]
["Dessert"]
["Quantité dessert"]
["Référence jour férié"]
["Jour férié"]
["Propositions menus midi retraite"]
["Numéro du menu","MJ155","MJ156","MJ157","MJ158","MJ159","MJ160","MJ161"]
["Date du menu","2026-08-05","2026-08-06","2026-08-07","2026-08-10","2026-08-11","2026-08-12","2026-08-13"]
["Référence légume","LMJ","LMJ","LMJ","LMJ","LMJ","LMJ","LMJ"]
["Légume"]
["Quantité légume"]
["Référence légume 2)","VMJ","VMJ","VMJ","VMJ","VMJ","VMJ","VMJ"]
["Légume 2"]
["Quantité légume 2","100,00","100,00","100,00","100,00","100,00","100,00","100,00"]
["Référence viande","DMR01","DMR01","DMR01","DMR01","DMR01","DMR01","DMR01"]
["Viande","Pomme","Pomme","Pomme","Pomme","Pomme","Pomme","Pomme"]
["Quantité viande","1,00","1,00","1,00","1,00","1,00","1,00","1,00"]
["Référence dessert"]
["Dessert"]
["Quantité dessert"]
["Référence jour férié"]
["Jour férié"]
["Propositions menus midi retraite"]
["Numéro du menu","MJ162","MJ163","MJ164","MJ165","MJ166","MJ167","MJ168"]
["Date du menu","2026-08-14","2026-08-17","2026-08-18","2026-08-19","2026-08-20","2026-08-21","2026-08-24"]
["Référence légume","LMJ","LMJ","LMJ","LMJ","LMJ","LMJ","LMJ"]
["Légume"]
["Quantité légume"]
["Référence légume 2)","VMJ","VMJ","VMJ","VMJ","VMJ","VMJ","VMJ"]
["Légume 2"]
["Quantité légume 2","100,00","100,00","100,00","100,00","100,00","100,00","100,00"]
["Référence viande","DMR01","DMR01","DMR01","DMR01","DMR01","DMR01","DMR01"]
["Viande","Pomme","Pomme","Pomme","Pomme","Pomme","Pomme","Pomme"]
["Quantité viande","1,00","1,00","1,00","1,00","1,00","1,00","1,00"]
["Référence dessert"]
["Dessert"]
["Quantité dessert"]
["Référence jour férié"]
["Jour férié"]
["Propositions menus midi retraite"]
["Numéro du menu","MJ169","MJ170","MJ171","MJ172","MJ173","MJ174","MJ175"]
["Date du menu","2026-08-25","2026-08-26","2026-08-27","2026-08-28","2026-08-31","2026-09-01","2026-09-02"]
["Référence légume","LMJ","LMJ","LMJ","LMJ","LMJ","LMJ","LMJ"]
["Légume"]
["Quantité légume"]
["Référence légume 2)","VMJ","VMJ","VMJ","VMJ","VMJ","VMJ","VMJ"]
["Légume 2"]
["Quantité légume 2","100,00","100,00","100,00","100,00","100,00","100,00","100,00"]
["Référence viande","DMR01","DMR01","DMR01","DMR01","DMR01","DMR01","DMR01"]
["Viande","Pomme","Pomme","Pomme","Pomme","Pomme","Pomme","Pomme"]
["Quantité viande","1,00","1,00","1,00","1,00","1,00","1,00","1,00"]
["Référence dessert"]
["Dessert"]
["Quantité dessert"]
["Référence jour férié"]
["Jour férié"]
["Propositions menus midi retraite"]
["Numéro du menu","MJ176","MJ177","MJ178","MJ179","MJ180","MJ181","MJ182"]
["Date du menu","2026-09-03","2026-09-04","2026-09-07","2026-09-08","2026-09-09","2026-09-10","2026-09-11"]
["Référence légume","LMJ","LMJ","LMJ","LMJ","LMJ","LMJ","LMJ"]
["Légume"]
["Quantité légume"]
["Référence légume 2)","VMJ","VMJ","VMJ","VMJ","VMJ","VMJ","VMJ"]
["Légume 2"]
["Quantité légume 2","100,00","100,00","100,00","100,00","100,00","100,00","100,00"]
["Référence viande","DMR01","DMR01","DMR01","DMR01","DMR01","DMR01","DMR01"]
["Viande","Pomme","Pomme","Pomme","Pomme","Pomme","Pomme","Pomme"]
["Quantité viande","1,00","1,00","1,00","1,00","1,00","1,00","1,00"]
["Référence dessert"]
["Dessert"]
["Quantité dessert"]
["Référence jour férié"]
["Jour férié"]
["Propositions menus midi retraite"]
["Numéro du menu","MJ183","MJ184","MJ185","MJ186","MJ187","MJ188","MJ189"]
["Date du menu","2026-09-14","2026-09-15","2026-09-16","2026-09-17","2026-09-18","2026-09-21","2026-09-22"]
["Référence légume","LMJ","LMJ","LMJ","LMJ","LMJ","LMJ","LMJ"]
["Légume"]
["Quantité légume"]
["Référence légume 2)","VMJ","VMJ","VMJ","VMJ","VMJ","VMJ","VMJ"]
["Légume 2"]
["Quantité légume 2","100,00","100,00","100,00","100,00","100,00","100,00","100,00"]
["Référence viande","DMR01","DMR01","DMR01","DMR01","DMR01","DMR01","DMR01"]
["Viande","Pomme","Pomme","Pomme","Pomme","Pomme","Pomme","Pomme"]
["Quantité viande","1,00","1,00","1,00","1,00","1,00","1,00","1,00"]
["Référence dessert"]
["Dessert"]
["Quantité dessert"]
["Référence jour férié"]
["Jour férié"]
["Propositions menus midi retraite"]
["Numéro du menu","MJ190","MJ191","MJ192","MJ193","MJ194","MJ195","MJ196"]
["Date du menu","2026-09-23","2026-09-24","2026-09-25","2026-09-28","2026-09-29","2026-09-30","2026-10-01"]
["Référence légume","LMJ","LMJ","LMJ","LMJ","LMJ","LMJ","LMJ"]
["Légume"]
["Quantité légume"]
["Référence légume 2)","VMJ","VMJ","VMJ","VMJ","VMJ","VMJ","VMJ"]
["Légume 2"]
["Quantité légume 2","100,00","100,00","100,00","100,00","100,00","100,00","100,00"]
["Référence viande","DMR01","DMR01","DMR01","DMR01","DMR01","DMR01","DMR01"]
["Viande","Pomme","Pomme","Pomme","Pomme","Pomme","Pomme","Pomme"]
["Quantité viande","1,00","1,00","1,00","1,00","1,00","1,00","1,00"]
["Référence dessert"]
["Dessert"]
["Quantité dessert"]
["Référence jour férié"]
["Jour férié"]
["Propositions menus midi retraite"]
["Numéro du menu","MJ197","MJ198","MJ199","MJ200","MJ201","MJ202","MJ203"]
["Date du menu","2026-10-02","2026-10-05","2026-10-06","2026-10-07","2026-10-08","2026-10-09","2026-10-12"]
["Référence légume","LMJ","LMJ","LMJ","LMJ","LMJ","LMJ","LMJ"]
["Légume"]
["Quantité légume"]
["Référence légume 2)","VMJ","VMJ","VMJ","VMJ","VMJ","VMJ","VMJ"]
["Légume 2"]
["Quantité légume 2","100,00","100,00","100,00","100,00","100,00","100,00","100,00"]
["Référence viande","DMR01","DMR01","DMR01","DMR01","DMR01","DMR01","DMR01"]
["Viande","Pomme","Pomme","Pomme","Pomme","Pomme","Pomme","Pomme"]
["Quantité viande","1,00","1,00","1,00","1,00","1,00","1,00","1,00"]
["Référence dessert"]
["Dessert"]
["Quantité dessert"]
["Référence jour férié"]
["Jour férié"]
["Propositions menus midi retraite"]
["Numéro du menu","MJ204","MJ205","MJ206","MJ207","MJ208","MJ209","MJ210"]
["Date du menu","2026-10-13","2026-10-14","2026-10-15","2026-10-16","2026-10-19","2026-10-20","2026-10-21"]
["Référence légume","LMJ","LMJ","LMJ","LMJ","LMJ","LMJ","LMJ"]
["Légume"]
["Quantité légume"]
["Référence légume 2)","VMJ","VMJ","VMJ","VMJ","VMJ","VMJ","VMJ"]
["Légume 2"]
["Quantité légume 2","100,00","100,00","100,00","100,00","100,00","100,00","100,00"]
["Référence viande","DMR01","DMR01","DMR01","DMR01","DMR01","DMR01","DMR01"]
["Viande","Pomme","Pomme","Pomme","Pomme","Pomme","Pomme","Pomme"]
["Quantité viande","1,00","1,00","1,00","1,00","1,00","1,00","1,00"]
["Référence dessert"]
["Dessert"]
["Quantité dessert"]
["Référence jour férié"]
["Jour férié"]
["Propositions menus midi retraite"]
["Numéro du menu","MJ211","MJ212","MJ213","MJ214","MJ215","MJ216","MJ217"]
["Date du menu","2026-10-22","2026-10-23","2026-10-26","2026-10-27","2026-10-28","2026-10-29","2026-10-30"]
["Référence légume","LMJ","LMJ","LMJ","LMJ","LMJ","LMJ","LMJ"]
["Légume"]
["Quantité légume"]
["Référence légume 2)","VMJ","VMJ","VMJ","VMJ","VMJ","VMJ","VMJ"]
["Légume 2"]
["Quantité légume 2","100,00","100,00","100,00","100,00","100,00","100,00","100,00"]
["Référence viande","DMR01","DMR01","DMR01","DMR01","DMR01","DMR01","DMR01"]
["Viande","Pomme","Pomme","Pomme","Pomme","Pomme","Pomme","Pomme"]
["Quantité viande","1,00","1,00","1,00","1,00","1,00","1,00","1,00"]
["Référence dessert"]
["Dessert"]
["Quantité dessert"]
["Référence jour férié"]
["Jour férié"]
["Propositions menus midi retraite"]
["Numéro du menu","MJ218","MJ219","MJ220","MJ221","MJ222","MJ223","MJ224"]
["Date du menu","2026-11-02","2026-11-03","2026-11-04","2026-11-05","2026-11-06","2026-11-09","2026-11-10"]
["Référence légume","LMJ","LMJ","LMJ","LMJ","LMJ","LMJ","LMJ"]
["Légume"]
["Quantité légume"]
["Référence légume 2)","VMJ","VMJ","VMJ","VMJ","VMJ","VMJ","VMJ"]
["Légume 2"]
["Quantité légume 2","100,00","100,00","100,00","100,00","100,00","100,00","100,00"]
["Référence viande","DMR01","DMR01","DMR01","DMR01","DMR01","DMR01","DMR01"]
["Viande","Pomme","Pomme","Pomme","Pomme","Pomme","Pomme","Pomme"]
["Quantité viande","1,00","1,00","1,00","1,00","1,00","1,00","1,00"]
["Référence dessert"]
["Dessert"]
["Quantité dessert"]
["Référence jour férié"]
["Jour férié"]
["Propositions menus midi retraite"]
["Numéro du menu","MJ225","MJ226","MJ227","MJ228","MJ229","MJ230","MJ231"]
["Date du menu","2026-11-11","2026-11-12","2026-11-13","2026-11-16","2026-11-17","2026-11-18","2026-11-19"]
["Référence légume","LMJ","LMJ","LMJ","LMJ","LMJ","LMJ","LMJ"]
["Légume"]
["Quantité légume"]
["Référence légume 2)","VMJ","VMJ","VMJ","VMJ","VMJ","VMJ","VMJ"]
["Légume 2"]
["Quantité légume 2","100,00","100,00","100,00","100,00","100,00","100,00","100,00"]
["Référence viande","DMR01","DMR01","DMR01","DMR01","DMR01","DMR01","DMR01"]
["Viande","Pomme","Pomme","Pomme","Pomme","Pomme","Pomme","Pomme"]
["Quantité viande","1,00","1,00","1,00","1,00","1,00","1,00","1,00"]
["Référence dessert","JF12"]
["Dessert","Armistice 1918"]
["Quantité dessert"]
["Référence jour férié"]
["Jour férié"]
["Propositions menus midi retraite"]
["Numéro du menu","MJ232","MJ233","MJ234","MJ235","MJ236","MJ237","MJ238"]
["Date du menu","2026-11-20","2026-11-23","2026-11-24","2026-11-25","2026-11-26","2026-11-27","2026-11-30"]
["Référence légume","LMJ","LMJ","LMJ","LMJ","LMJ","LMJ","LMJ"]
["Légume"]
["Quantité légume"]
["Référence légume 2)","VMJ","VMJ","VMJ","VMJ","VMJ","VMJ","VMJ"]
["Légume 2"]
["Quantité légume 2","100,00","100,00","100,00","100,00","100,00","100,00","100,00"]
["Référence viande","DMR01","DMR01","DMR01","DMR01","DMR01","DMR01","DMR01"]
["Viande","Pomme","Pomme","Pomme","Pomme","Pomme","Pomme","Pomme"]
["Quantité viande","1,00","1,00","1,00","1,00","1,00","1,00","1,00"]
["Référence dessert"]
["Dessert"]
["Quantité dessert"]
["Référence jour férié"]
["Jour férié"]
["Propositions menus midi retraite"]
["Numéro du menu","MJ239","MJ240","MJ241","MJ242","MJ243","MJ244","MJ245"]
["Date du menu","2026-12-01","2026-12-02","2026-12-03","2026-12-04","2026-12-07","2026-12-08","2026-12-09"]
["Référence légume","LMJ","LMJ","LMJ","LMJ","LMJ","LMJ","LMJ"]
["Légume"]
["Quantité légume"]
["Référence légume 2)","VMJ","VMJ","VMJ","VMJ","VMJ","VMJ","VMJ"]
["Légume 2"]
["Quantité légume 2","100,00","100,00","100,00","100,00","100,00","100,00","100,00"]
["Référence viande","DMR01","DMR01","DMR01","DMR01","DMR01","DMR01","DMR01"]
["Viande","Pomme","Pomme","Pomme","Pomme","Pomme","Pomme","Pomme"]
["Quantité viande","1,00","1,00","1,00","1,00","1,00","1,00","1,00"]
["Référence dessert"]
["Dessert"]
["Quantité dessert"]
["Référence jour férié"]
["Jour férié"]
["Propositions menus midi retraite"]
["Numéro du menu","MJ246","MJ247","MJ248","MJ249","MJ250","MJ251","MJ252"]
["Date du menu","2026-12-10","2026-12-11","2026-12-14","2026-12-15","2026-12-16","2026-12-17","2026-12-18"]
["Référence légume","LMJ","LMJ","LMJ","LMJ","LMJ","LMJ","LMJ"]
["Légume"]
["Quantité légume"]
["Référence légume 2)","VMJ","VMJ","VMJ","VMJ","VMJ","VMJ","VMJ"]
["Légume 2"]
["Quantité légume 2","100,00","100,00","100,00","100,00","100,00","100,00","100,00"]
["Référence viande","DMR01","DMR01","DMR01","DMR01","DMR01","DMR01","DMR01"]
["Viande","Pomme","Pomme","Pomme","Pomme","Pomme","Pomme","Pomme"]
["Quantité viande","1,00","1,00","1,00","1,00","1,00","1,00","1,00"]
["Référence dessert"]
["Dessert"]
["Quantité dessert"]
["Référence jour férié"]
["Jour férié"]
["Propositions menus midi retraite"]
["Numéro du menu","MJ253","MJ254","MJ255","MJ256","MJ257","MJ258","MJ259"]
["Date du menu","2026-12-21","2026-12-22","2026-12-23","2026-12-24","2026-12-25","2026-12-28","2026-12-29"]
["Référence légume","LMJ","LMJ","LMJ","LMJ","LMJ","LMJ","LMJ"]
["Légume"]
["Quantité légume"]
["Référence légume 2)","VMJ","VMJ","VMJ","VMJ","VMJ","VMJ","VMJ"]
["Légume 2"]
["Quantité légume 2","100,00","100,00","100,00","100,00","100,00","100,00","100,00"]
["Référence viande","DMR01","DMR01","DMR01","DMR01","DMR01","DMR01","DMR01"]
["Viande","Pomme","Pomme","Pomme","Pomme","Pomme","Pomme","Pomme"]
["Quantité viande","1,00","1,00","1,00","1,00","1,00","1,00","1,00"]
["Référence dessert",null,null,null,null,"JF13"]
["Dessert",null,null,null,null,"Noël"]
["Quantité dessert"]
["Référence jour férié"]
["Jour férié"]
["Propositions menus midi retraite"]
["Numéro du menu","MJ260","MJ261"]
["Date du menu","2026-12-30","2026-12-31"]
["Référence légume","LMJ","LMJ"]
["Légume"]
["Quantité légume"]
["Référence légume 2)","VMJ","VMJ"]
["Légume 2"]
["Quantité légume 2","100,00","100,00"]
["Référence viande","DMR01","DMR01"]
["Viande","Pomme","Pomme"]
["Quantité viande","1,00","1,00"]
["Référence dessert"]
["Dessert"]
["Quantité dessert"]
["Référence jour férié"]
["Jour férié"]
["Propositions menus midi retraite"]
["Numéro du menu","MJ262"]
["Date du menu","2027-01-01"]
["Référence légume","LMJ"]
["Légume"]
["Quantité légume"]
["Référence légume 2)","VMJ"]
["Légume 2"]
["Quantité légume 2","100,00"]
["Référence viande","DMR01"]
["Viande","Pomme"]
["Quantité viande","1,00"]
["Référence dessert"]
["Dessert"]
["Quantité dessert"]
["Référence jour férié"]
["Jour férié"]
["Propositions menus midi retraite"]
["Numéro du menu","MJ263"]
["Date du menu","2027-01-04"]
["Référence légume","LMJ"]
["Légume"]
["Quantité légume"]
["Référence légume 2)","VMJ"]
["Légume 2"]
["Quantité légume 2","100,00"]
["Référence viande","DMR01"]
["Viande","Pomme"]
["Quantité viande","1,00"]
["Référence dessert"]
["Dessert"]
["Quantité dessert"]
["Référence jour férié"]
["Jour férié"]
["Propositions menus midi retraite"]
["Numéro du menu","MJ264"]
["Date du menu","2027-01-05"]
["Référence légume","LMJ"]
["Légume"]
["Quantité légume"]
["Référence légume 2)","VMJ"]
["Légume 2"]
["Quantité légume 2","100,00"]
["Référence viande","DMR01"]
["Viande","Pomme"]
["Quantité viande","1,00"]
["Référence dessert"]
["Dessert"]
["Quantité dessert"]
["Référence jour férié"]
["Jour férié"]
["Propositions menus midi retraite"]
["Numéro du menu","MJ265"]
["Date du menu","2027-01-06"]
["Référence légume","LMJ"]
["Légume"]
["Quantité légume"]
["Référence légume 2)","VMJ"]
["Légume 2"]
["Quantité légume 2","100,00"]
["Référence viande","DMR01"]
["Viande","Pomme"]
["Quantité viande","1,00"]
["Référence dessert"]
["Dessert"]
["Quantité dessert"]
["Référence jour férié"]
["Jour férié"]
["Propositions menus midi retraite"]
["Numéro du menu","MJ266"]
["Date du menu","2027-01-07"]
["Référence légume","LMJ"]
["Légume"]
["Quantité légume"]
["Référence légume 2)","VMJ"]
["Légume 2"]
["Quantité légume 2","100,00"]
["Référence viande","DMR01"]
["Viande","Pomme"]
["Quantité viande","1,00"]
["Référence dessert"]
["Dessert"]
["Quantité dessert"]
["Référence jour férié"]
["Jour férié"]
["Propositions menus midi retraite"]
["Numéro du menu","MJ267"]
["Date du menu","2027-01-08"]
["Référence légume","LMJ"]
["Légume"]
["Quantité légume"]
["Référence légume 2)","VMJ"]
["Légume 2"]
["Quantité légume 2","100,00"]
["Référence viande","DMR01"]
["Viande","Pomme"]
["Quantité viande","1,00"]
["Référence dessert"]
["Dessert"]
["Quantité dessert"]
["Référence jour férié"]
["Jour férié"]
["Propositions menus midi retraite"]
["Numéro du menu","MJ268"]
["Date du menu","2027-01-11"]
["Référence légume","LMJ"]
["Légume"]
["Quantité légume"]
["Référence légume 2)","VMJ"]
["Légume 2"]
["Quantité légume 2","100,00"]
["Référence viande","DMR01"]
["Viande","Pomme"]
["Quantité viande","1,00"]
["Référence dessert"]
["Dessert"]
["Quantité dessert"]
["Référence jour férié"]
["Jour férié"]
["Propositions menus midi retraite"]
["Numéro du menu","MJ269"]
["Date du menu","2027-01-12"]
["Référence légume","LMJ"]
["Légume"]
["Quantité légume"]
["Référence légume 2)","VMJ"]
["Légume 2"]
["Quantité légume 2","100,00"]
["Référence viande","DMR01"]
["Viande","Pomme"]
["Quantité viande","1,00"]
["Référence dessert"]
["Dessert"]
["Quantité dessert"]
["Référence jour férié"]
["Jour férié"]
["Propositions menus midi retraite"]
["Numéro du menu","MJ270"]
["Date du menu","2027-01-13"]
["Référence légume","LMJ"]
["Légume"]
["Quantité légume"]
["Référence légume 2)","VMJ"]
["Légume 2"]
["Quantité légume 2","100,00"]
["Référence viande","DMR01"]
["Viande","Pomme"]
["Quantité viande","1,00"]
["Référence dessert"]
["Dessert"]
["Quantité dessert"]
["Référence jour férié"]
["Jour férié"]
["Propositions menus midi retraite"]
["Numéro du menu","MJ271"]
["Date du menu","2027-01-14"]
["Référence légume","LMJ"]
["Légume"]
["Quantité légume"]
["Référence légume 2)","VMJ"]
["Légume 2"]
["Quantité légume 2","100,00"]
["Référence viande","DMR01"]
["Viande","Pomme"]
["Quantité viande","1,00"]
["Référence dessert"]
["Dessert"]
["Quantité dessert"]
["Référence jour férié"]
["Jour férié"]
["Propositions menus midi retraite"]
["Numéro du menu","MJ272"]
["Date du menu","2027-01-15"]
["Référence légume","LMJ"]
["Légume"]
["Quantité légume"]
["Référence légume 2)","VMJ"]
["Légume 2"]
["Quantité légume 2","100,00"]
["Référence viande","DMR01"]
["Viande","Pomme"]
["Quantité viande","1,00"]
["Référence dessert"]
["Dessert"]
["Quantité dessert"]
["Référence jour férié"]
["Jour férié"]
["Propositions menus midi retraite"]
["Numéro du menu","MJ273"]
["Date du menu","2027-01-18"]
["Référence légume","LMJ"]
["Légume"]
["Quantité légume"]
["Référence légume 2)","VMJ"]
["Légume 2"]
["Quantité légume 2","100,00"]
["Référence viande","DMR01"]
["Viande","Pomme"]
["Quantité viande","1,00"]
["Référence dessert"]
["Dessert"]
["Quantité dessert"]
["Référence jour férié"]
["Jour férié"]
["Propositions menus midi retraite"]
["Numéro du menu","MJ274"]
["Date du menu","2027-01-19"]
["Référence légume","LMJ"]
["Légume"]
["Quantité légume"]
["Référence légume 2)","VMJ"]
["Légume 2"]
["Quantité légume 2","100,00"]
["Référence viande","DMR01"]
["Viande","Pomme"]
["Quantité viande","1,00"]
["Référence dessert"]
["Dessert"]
["Quantité dessert"]
["Référence jour férié"]
["Jour férié"]
["Propositions menus midi retraite"]
["Numéro du menu","MJ275"]
["Date du menu","2027-01-20"]
["Référence légume","LMJ"]
["Légume"]
["Quantité légume"]
["Référence légume 2)","VMJ"]
["Légume 2"]
["Quantité légume 2","100,00"]
["Référence viande","DMR01"]
["Viande","Pomme"]
["Quantité viande","1,00"]
["Référence dessert"]
["Dessert"]
["Quantité dessert"]
["Référence jour férié"]
["Jour férié"]
["Propositions menus midi retraite"]
["Numéro du menu","MJ276"]
["Date du menu","2027-01-21"]
["Référence légume","LMJ"]
["Légume"]
["Quantité légume"]
["Référence légume 2)","VMJ"]
["Légume 2"]
["Quantité légume 2","100,00"]
["Référence viande","DMR01"]
["Viande","Pomme"]
["Quantité viande","1,00"]
["Référence dessert"]
["Dessert"]
["Quantité dessert"]
["Référence jour férié"]
["Jour férié"]

{"sheet":"Propositions menus VMWE","index":4,"n_rows":0,"n_cols":0,"rows_kept":0,"cut":false,"hidden":false,"merged":[]}

{"sheet":"BD articles menus","index":5,"n_rows":120,"n_cols":13,"rows_kept":120,"cut":false,"hidden":false,"merged":[]}
[]
["Nom nature création articles menus","Code nom nature création articles menus","Nom articles menus","Code nom articles menus","Nom période articles menus","Code nom période articles menus","Nom conditionnement articles menus","Code nom conditionnement articles menus","Quantité pour un repas","Quantité pour la journée","Date création articles menus","Numéro création articles menus","Clé article"]
[null,null,"Pomme","DMR01",null,null,null,null,null,null,null,null,{"$f":"TabBDArticlesMenus[[#This Row],[Code nom articles menus]]&\" \"&TabBDArticlesMenus[[#This Row],[Nom articles menus]]","v":"DMR01 Pomme"}]
[null,null,null,null,null,null,null,null,null,null,null,null,{"$f":"TabBDArticlesMenus[[#This Row],[Code nom articles menus]]&\" \"&TabBDArticlesMenus[[#This Row],[Nom articles menus]]","v":" "}]
[null,null,null,null,null,null,null,null,null,null,null,null,{"$f":"TabBDArticlesMenus[[#This Row],[Code nom articles menus]]&\" \"&TabBDArticlesMenus[[#This Row],[Nom articles menus]]","v":" "}]
[null,null,null,null,null,null,null,null,null,null,null,null,{"$f":"TabBDArticlesMenus[[#This Row],[Code nom articles menus]]&\" \"&TabBDArticlesMenus[[#This Row],[Nom articles menus]]","v":" "}]
[null,null,null,null,null,null,null,null,null,null,null,null,{"$f":"TabBDArticlesMenus[[#This Row],[Code nom articles menus]]&\" \"&TabBDArticlesMenus[[#This Row],[Nom articles menus]]","v":" "}]
[null,null,null,null,null,null,null,null,null,null,null,null,{"$f":"TabBDArticlesMenus[[#This Row],[Code nom articles menus]]&\" \"&TabBDArticlesMenus[[#This Row],[Nom articles menus]]","v":" "}]
[null,null,null,null,null,null,null,null,null,null,null,null,{"$f":"TabBDArticlesMenus[[#This Row],[Code nom articles menus]]&\" \"&TabBDArticlesMenus[[#This Row],[Nom articles menus]]","v":" "}]
[null,null,null,null,null,null,null,null,null,null,null,null,{"$f":"TabBDArticlesMenus[[#This Row],[Code nom articles menus]]&\" \"&TabBDArticlesMenus[[#This Row],[Nom articles menus]]","v":" "}]
[null,null,null,null,null,null,null,null,null,null,null,null,{"$f":"TabBDArticlesMenus[[#This Row],[Code nom articles menus]]&\" \"&TabBDArticlesMenus[[#This Row],[Nom articles menus]]","v":" "}]
[null,null,null,null,null,null,null,null,null,null,null,null,{"$f":"TabBDArticlesMenus[[#This Row],[Code nom articles menus]]&\" \"&TabBDArticlesMenus[[#This Row],[Nom articles menus]]","v":" "}]
[null,null,null,null,null,null,null,null,null,null,null,null,{"$f":"TabBDArticlesMenus[[#This Row],[Code nom articles menus]]&\" \"&TabBDArticlesMenus[[#This Row],[Nom articles menus]]","v":" "}]
[null,null,null,null,null,null,null,null,null,null,null,null,{"$f":"TabBDArticlesMenus[[#This Row],[Code nom articles menus]]&\" \"&TabBDArticlesMenus[[#This Row],[Nom articles menus]]","v":" "}]
[null,null,null,null,null,null,null,null,null,null,null,null,{"$f":"TabBDArticlesMenus[[#This Row],[Code nom articles menus]]&\" \"&TabBDArticlesMenus[[#This Row],[Nom articles menus]]","v":" "}]
[null,null,null,null,null,null,null,null,null,null,null,null,{"$f":"TabBDArticlesMenus[[#This Row],[Code nom articles menus]]&\" \"&TabBDArticlesMenus[[#This Row],[Nom articles menus]]","v":" "}]
[null,null,null,null,null,null,null,null,null,null,null,null,{"$f":"TabBDArticlesMenus[[#This Row],[Code nom articles menus]]&\" \"&TabBDArticlesMenus[[#This Row],[Nom articles menus]]","v":" "}]
[null,null,null,null,null,null,null,null,null,null,null,null,{"$f":"TabBDArticlesMenus[[#This Row],[Code nom articles menus]]&\" \"&TabBDArticlesMenus[[#This Row],[Nom articles menus]]","v":" "}]
[null,null,null,null,null,null,null,null,null,null,null,null,{"$f":"TabBDArticlesMenus[[#This Row],[Code nom articles menus]]&\" \"&TabBDArticlesMenus[[#This Row],[Nom articles menus]]","v":" "}]
[null,null,null,null,null,null,null,null,null,null,null,null,{"$f":"TabBDArticlesMenus[[#This Row],[Code nom articles menus]]&\" \"&TabBDArticlesMenus[[#This Row],[Nom articles menus]]","v":" "}]
[null,null,null,null,null,null,null,null,null,null,null,null,{"$f":"TabBDArticlesMenus[[#This Row],[Code nom articles menus]]&\" \"&TabBDArticlesMenus[[#This Row],[Nom articles menus]]","v":" "}]
[null,null,null,null,null,null,null,null,null,null,null,null,{"$f":"TabBDArticlesMenus[[#This Row],[Code nom articles menus]]&\" \"&TabBDArticlesMenus[[#This Row],[Nom articles menus]]","v":" "}]
[null,null,null,null,null,null,null,null,null,null,null,null,{"$f":"TabBDArticlesMenus[[#This Row],[Code nom articles menus]]&\" \"&TabBDArticlesMenus[[#This Row],[Nom articles menus]]","v":" "}]
[null,null,null,null,null,null,null,null,null,null,null,null,{"$f":"TabBDArticlesMenus[[#This Row],[Code nom articles menus]]&\" \"&TabBDArticlesMenus[[#This Row],[Nom articles menus]]","v":" "}]
[null,null,null,null,null,null,null,null,null,null,null,null,{"$f":"TabBDArticlesMenus[[#This Row],[Code nom articles menus]]&\" \"&TabBDArticlesMenus[[#This Row],[Nom articles menus]]","v":" "}]
[null,null,null,null,null,null,null,null,null,null,null,null,{"$f":"TabBDArticlesMenus[[#This Row],[Code nom articles menus]]&\" \"&TabBDArticlesMenus[[#This Row],[Nom articles menus]]","v":" "}]
[null,null,null,null,null,null,null,null,null,null,null,null,{"$f":"TabBDArticlesMenus[[#This Row],[Code nom articles menus]]&\" \"&TabBDArticlesMenus[[#This Row],[Nom articles menus]]","v":" "}]
[null,null,null,null,null,null,null,null,null,null,null,null,{"$f":"TabBDArticlesMenus[[#This Row],[Code nom articles menus]]&\" \"&TabBDArticlesMenus[[#This Row],[Nom articles menus]]","v":" "}]
[null,null,null,null,null,null,null,null,null,null,null,null,{"$f":"TabBDArticlesMenus[[#This Row],[Code nom articles menus]]&\" \"&TabBDArticlesMenus[[#This Row],[Nom articles menus]]","v":" "}]
[null,null,null,null,null,null,null,null,null,null,null,null,{"$f":"TabBDArticlesMenus[[#This Row],[Code nom articles menus]]&\" \"&TabBDArticlesMenus[[#This Row],[Nom articles menus]]","v":" "}]
[null,null,null,null,null,null,null,null,null,null,null,null,{"$f":"TabBDArticlesMenus[[#This Row],[Code nom articles menus]]&\" \"&TabBDArticlesMenus[[#This Row],[Nom articles menus]]","v":" "}]
[null,null,null,null,null,null,null,null,null,null,null,null,{"$f":"TabBDArticlesMenus[[#This Row],[Code nom articles menus]]&\" \"&TabBDArticlesMenus[[#This Row],[Nom articles menus]]","v":" "}]
[null,null,null,null,null,null,null,null,null,null,null,null,{"$f":"TabBDArticlesMenus[[#This Row],[Code nom articles menus]]&\" \"&TabBDArticlesMenus[[#This Row],[Nom articles menus]]","v":" "}]
[null,null,null,null,null,null,null,null,null,null,null,null,{"$f":"TabBDArticlesMenus[[#This Row],[Code nom articles menus]]&\" \"&TabBDArticlesMenus[[#This Row],[Nom articles menus]]","v":" "}]
[null,null,null,null,null,null,null,null,null,null,null,null,{"$f":"TabBDArticlesMenus[[#This Row],[Code nom articles menus]]&\" \"&TabBDArticlesMenus[[#This Row],[Nom articles menus]]","v":" "}]
[null,null,null,null,null,null,null,null,null,null,null,null,{"$f":"TabBDArticlesMenus[[#This Row],[Code nom articles menus]]&\" \"&TabBDArticlesMenus[[#This Row],[Nom articles menus]]","v":" "}]
[null,null,null,null,null,null,null,null,null,null,null,null,{"$f":"TabBDArticlesMenus[[#This Row],[Code nom articles menus]]&\" \"&TabBDArticlesMenus[[#This Row],[Nom articles menus]]","v":" "}]
[null,null,null,null,null,null,null,null,null,null,null,null,{"$f":"TabBDArticlesMenus[[#This Row],[Code nom articles menus]]&\" \"&TabBDArticlesMenus[[#This Row],[Nom articles menus]]","v":" "}]
[null,null,null,null,null,null,null,null,null,null,null,null,{"$f":"TabBDArticlesMenus[[#This Row],[Code nom articles menus]]&\" \"&TabBDArticlesMenus[[#This Row],[Nom articles menus]]","v":" "}]
[null,null,null,null,null,null,null,null,null,null,null,null,{"$f":"TabBDArticlesMenus[[#This Row],[Code nom articles menus]]&\" \"&TabBDArticlesMenus[[#This Row],[Nom articles menus]]","v":" "}]
[null,null,null,null,null,null,null,null,null,null,null,null,{"$f":"TabBDArticlesMenus[[#This Row],[Code nom articles menus]]&\" \"&TabBDArticlesMenus[[#This Row],[Nom articles menus]]","v":" "}]
[null,null,null,null,null,null,null,null,null,null,null,null,{"$f":"TabBDArticlesMenus[[#This Row],[Code nom articles menus]]&\" \"&TabBDArticlesMenus[[#This Row],[Nom articles menus]]","v":" "}]
[null,null,null,null,null,null,null,null,null,null,null,null,{"$f":"TabBDArticlesMenus[[#This Row],[Code nom articles menus]]&\" \"&TabBDArticlesMenus[[#This Row],[Nom articles menus]]","v":" "}]
[null,null,null,null,null,null,null,null,null,null,null,null,{"$f":"TabBDArticlesMenus[[#This Row],[Code nom articles menus]]&\" \"&TabBDArticlesMenus[[#This Row],[Nom articles menus]]","v":" "}]
[null,null,null,null,null,null,null,null,null,null,null,null,{"$f":"TabBDArticlesMenus[[#This Row],[Code nom articles menus]]&\" \"&TabBDArticlesMenus[[#This Row],[Nom articles menus]]","v":" "}]
[null,null,null,null,null,null,null,null,null,null,null,null,{"$f":"TabBDArticlesMenus[[#This Row],[Code nom articles menus]]&\" \"&TabBDArticlesMenus[[#This Row],[Nom articles menus]]","v":" "}]
[null,null,null,null,null,null,null,null,null,null,null,null,{"$f":"TabBDArticlesMenus[[#This Row],[Code nom articles menus]]&\" \"&TabBDArticlesMenus[[#This Row],[Nom articles menus]]","v":" "}]
[null,null,null,null,null,null,null,null,null,null,null,null,{"$f":"TabBDArticlesMenus[[#This Row],[Code nom articles menus]]&\" \"&TabBDArticlesMenus[[#This Row],[Nom articles menus]]","v":" "}]
[null,null,null,null,null,null,null,null,null,null,null,null,{"$f":"TabBDArticlesMenus[[#This Row],[Code nom articles menus]]&\" \"&TabBDArticlesMenus[[#This Row],[Nom articles menus]]","v":" "}]
[null,null,null,null,null,null,null,null,null,null,null,null,{"$f":"TabBDArticlesMenus[[#This Row],[Code nom articles menus]]&\" \"&TabBDArticlesMenus[[#This Row],[Nom articles menus]]","v":" "}]
[null,null,null,null,null,null,null,null,null,null,null,null,{"$f":"TabBDArticlesMenus[[#This Row],[Code nom articles menus]]&\" \"&TabBDArticlesMenus[[#This Row],[Nom articles menus]]","v":" "}]
[null,null,null,null,null,null,null,null,null,null,null,null,{"$f":"TabBDArticlesMenus[[#This Row],[Code nom articles menus]]&\" \"&TabBDArticlesMenus[[#This Row],[Nom articles menus]]","v":" "}]
[null,null,null,null,null,null,null,null,null,null,null,null,{"$f":"TabBDArticlesMenus[[#This Row],[Code nom articles menus]]&\" \"&TabBDArticlesMenus[[#This Row],[Nom articles menus]]","v":" "}]
[null,null,null,null,null,null,null,null,null,null,null,null,{"$f":"TabBDArticlesMenus[[#This Row],[Code nom articles menus]]&\" \"&TabBDArticlesMenus[[#This Row],[Nom articles menus]]","v":" "}]
[null,null,null,null,null,null,null,null,null,null,null,null,{"$f":"TabBDArticlesMenus[[#This Row],[Code nom articles menus]]&\" \"&TabBDArticlesMenus[[#This Row],[Nom articles menus]]","v":" "}]
[null,null,null,null,null,null,null,null,null,null,null,null,{"$f":"TabBDArticlesMenus[[#This Row],[Code nom articles menus]]&\" \"&TabBDArticlesMenus[[#This Row],[Nom articles menus]]","v":" "}]
[null,null,null,null,null,null,null,null,null,null,null,null,{"$f":"TabBDArticlesMenus[[#This Row],[Code nom articles menus]]&\" \"&TabBDArticlesMenus[[#This Row],[Nom articles menus]]","v":" "}]
[null,null,null,null,null,null,null,null,null,null,null,null,{"$f":"TabBDArticlesMenus[[#This Row],[Code nom articles menus]]&\" \"&TabBDArticlesMenus[[#This Row],[Nom articles menus]]","v":" "}]
[null,null,null,null,null,null,null,null,null,null,null,null,{"$f":"TabBDArticlesMenus[[#This Row],[Code nom articles menus]]&\" \"&TabBDArticlesMenus[[#This Row],[Nom articles menus]]","v":" "}]
[null,null,null,null,null,null,null,null,null,null,null,null,{"$f":"TabBDArticlesMenus[[#This Row],[Code nom articles menus]]&\" \"&TabBDArticlesMenus[[#This Row],[Nom articles menus]]","v":" "}]
[null,null,null,null,null,null,null,null,null,null,null,null,{"$f":"TabBDArticlesMenus[[#This Row],[Code nom articles menus]]&\" \"&TabBDArticlesMenus[[#This Row],[Nom articles menus]]","v":" "}]
[null,null,null,null,null,null,null,null,null,null,null,null,{"$f":"TabBDArticlesMenus[[#This Row],[Code nom articles menus]]&\" \"&TabBDArticlesMenus[[#This Row],[Nom articles menus]]","v":" "}]
[null,null,null,null,null,null,null,null,null,null,null,null,{"$f":"TabBDArticlesMenus[[#This Row],[Code nom articles menus]]&\" \"&TabBDArticlesMenus[[#This Row],[Nom articles menus]]","v":" "}]
[null,null,null,null,null,null,null,null,null,null,null,null,{"$f":"TabBDArticlesMenus[[#This Row],[Code nom articles menus]]&\" \"&TabBDArticlesMenus[[#This Row],[Nom articles menus]]","v":" "}]
[null,null,null,null,null,null,null,null,null,null,null,null,{"$f":"TabBDArticlesMenus[[#This Row],[Code nom articles menus]]&\" \"&TabBDArticlesMenus[[#This Row],[Nom articles menus]]","v":" "}]
[null,null,null,null,null,null,null,null,null,null,null,null,{"$f":"TabBDArticlesMenus[[#This Row],[Code nom articles menus]]&\" \"&TabBDArticlesMenus[[#This Row],[Nom articles menus]]","v":" "}]
[null,null,null,null,null,null,null,null,null,null,null,null,{"$f":"TabBDArticlesMenus[[#This Row],[Code nom articles menus]]&\" \"&TabBDArticlesMenus[[#This Row],[Nom articles menus]]","v":" "}]
[null,null,null,null,null,null,null,null,null,null,null,null,{"$f":"TabBDArticlesMenus[[#This Row],[Code nom articles menus]]&\" \"&TabBDArticlesMenus[[#This Row],[Nom articles menus]]","v":" "}]
[null,null,null,null,null,null,null,null,null,null,null,null,{"$f":"TabBDArticlesMenus[[#This Row],[Code nom articles menus]]&\" \"&TabBDArticlesMenus[[#This Row],[Nom articles menus]]","v":" "}]
[null,null,null,null,null,null,null,null,null,null,null,null,{"$f":"TabBDArticlesMenus[[#This Row],[Code nom articles menus]]&\" \"&TabBDArticlesMenus[[#This Row],[Nom articles menus]]","v":" "}]
[null,null,null,null,null,null,null,null,null,null,null,null,{"$f":"TabBDArticlesMenus[[#This Row],[Code nom articles menus]]&\" \"&TabBDArticlesMenus[[#This Row],[Nom articles menus]]","v":" "}]
[null,null,null,null,null,null,null,null,null,null,null,null,{"$f":"TabBDArticlesMenus[[#This Row],[Code nom articles menus]]&\" \"&TabBDArticlesMenus[[#This Row],[Nom articles menus]]","v":" "}]
[null,null,null,null,null,null,null,null,null,null,null,null,{"$f":"TabBDArticlesMenus[[#This Row],[Code nom articles menus]]&\" \"&TabBDArticlesMenus[[#This Row],[Nom articles menus]]","v":" "}]
[null,null,null,null,null,null,null,null,null,null,null,null,{"$f":"TabBDArticlesMenus[[#This Row],[Code nom articles menus]]&\" \"&TabBDArticlesMenus[[#This Row],[Nom articles menus]]","v":" "}]
[null,null,null,null,null,null,null,null,null,null,null,null,{"$f":"TabBDArticlesMenus[[#This Row],[Code nom articles menus]]&\" \"&TabBDArticlesMenus[[#This Row],[Nom articles menus]]","v":" "}]
[null,null,null,null,null,null,null,null,null,null,null,null,{"$f":"TabBDArticlesMenus[[#This Row],[Code nom articles menus]]&\" \"&TabBDArticlesMenus[[#This Row],[Nom articles menus]]","v":" "}]
[null,null,null,null,null,null,null,null,null,null,null,null,{"$f":"TabBDArticlesMenus[[#This Row],[Code nom articles menus]]&\" \"&TabBDArticlesMenus[[#This Row],[Nom articles menus]]","v":" "}]
[null,null,null,null,null,null,null,null,null,null,null,null,{"$f":"TabBDArticlesMenus[[#This Row],[Code nom articles menus]]&\" \"&TabBDArticlesMenus[[#This Row],[Nom articles menus]]","v":" "}]
[null,null,null,null,null,null,null,null,null,null,null,null,{"$f":"TabBDArticlesMenus[[#This Row],[Code nom articles menus]]&\" \"&TabBDArticlesMenus[[#This Row],[Nom articles menus]]","v":" "}]
[null,null,null,null,null,null,null,null,null,null,null,null,{"$f":"TabBDArticlesMenus[[#This Row],[Code nom articles menus]]&\" \"&TabBDArticlesMenus[[#This Row],[Nom articles menus]]","v":" "}]
[null,null,null,null,null,null,null,null,null,null,null,null,{"$f":"TabBDArticlesMenus[[#This Row],[Code nom articles menus]]&\" \"&TabBDArticlesMenus[[#This Row],[Nom articles menus]]","v":" "}]
[null,null,null,null,null,null,null,null,null,null,null,null,{"$f":"TabBDArticlesMenus[[#This Row],[Code nom articles menus]]&\" \"&TabBDArticlesMenus[[#This Row],[Nom articles menus]]","v":" "}]
[null,null,null,null,null,null,null,null,null,null,null,null,{"$f":"TabBDArticlesMenus[[#This Row],[Code nom articles menus]]&\" \"&TabBDArticlesMenus[[#This Row],[Nom articles menus]]","v":" "}]
[null,null,null,null,null,null,null,null,null,null,null,null,{"$f":"TabBDArticlesMenus[[#This Row],[Code nom articles menus]]&\" \"&TabBDArticlesMenus[[#This Row],[Nom articles menus]]","v":" "}]
[null,null,null,null,null,null,null,null,null,null,null,null,{"$f":"TabBDArticlesMenus[[#This Row],[Code nom articles menus]]&\" \"&TabBDArticlesMenus[[#This Row],[Nom articles menus]]","v":" "}]
[null,null,null,null,null,null,null,null,null,null,null,null,{"$f":"TabBDArticlesMenus[[#This Row],[Code nom articles menus]]&\" \"&TabBDArticlesMenus[[#This Row],[Nom articles menus]]","v":" "}]
[null,null,null,null,null,null,null,null,null,null,null,null,{"$f":"TabBDArticlesMenus[[#This Row],[Code nom articles menus]]&\" \"&TabBDArticlesMenus[[#This Row],[Nom articles menus]]","v":" "}]
[null,null,null,null,null,null,null,null,null,null,null,null,{"$f":"TabBDArticlesMenus[[#This Row],[Code nom articles menus]]&\" \"&TabBDArticlesMenus[[#This Row],[Nom articles menus]]","v":" "}]
[null,null,null,null,null,null,null,null,null,null,null,null,{"$f":"TabBDArticlesMenus[[#This Row],[Code nom articles menus]]&\" \"&TabBDArticlesMenus[[#This Row],[Nom articles menus]]","v":" "}]
[null,null,null,null,null,null,null,null,null,null,null,null,{"$f":"TabBDArticlesMenus[[#This Row],[Code nom articles menus]]&\" \"&TabBDArticlesMenus[[#This Row],[Nom articles menus]]","v":" "}]
[null,null,null,null,null,null,null,null,null,null,null,null,{"$f":"TabBDArticlesMenus[[#This Row],[Code nom articles menus]]&\" \"&TabBDArticlesMenus[[#This Row],[Nom articles menus]]","v":" "}]
[null,null,null,null,null,null,null,null,null,null,null,null,{"$f":"TabBDArticlesMenus[[#This Row],[Code nom articles menus]]&\" \"&TabBDArticlesMenus[[#This Row],[Nom articles menus]]","v":" "}]
[null,null,null,null,null,null,null,null,null,null,null,null,{"$f":"TabBDArticlesMenus[[#This Row],[Code nom articles menus]]&\" \"&TabBDArticlesMenus[[#This Row],[Nom articles menus]]","v":" "}]
[null,null,null,null,null,null,null,null,null,null,null,null,{"$f":"TabBDArticlesMenus[[#This Row],[Code nom articles menus]]&\" \"&TabBDArticlesMenus[[#This Row],[Nom articles menus]]","v":" "}]
[null,null,null,null,null,null,null,null,null,null,null,null,{"$f":"TabBDArticlesMenus[[#This Row],[Code nom articles menus]]&\" \"&TabBDArticlesMenus[[#This Row],[Nom articles menus]]","v":" "}]
[null,null,null,null,null,null,null,null,null,null,null,null,{"$f":"TabBDArticlesMenus[[#This Row],[Code nom articles menus]]&\" \"&TabBDArticlesMenus[[#This Row],[Nom articles menus]]","v":" "}]
[null,null,null,null,null,null,null,null,null,null,null,null,{"$f":"TabBDArticlesMenus[[#This Row],[Code nom articles menus]]&\" \"&TabBDArticlesMenus[[#This Row],[Nom articles menus]]","v":" "}]
[null,null,null,null,null,null,null,null,null,null,null,null,{"$f":"TabBDArticlesMenus[[#This Row],[Code nom articles menus]]&\" \"&TabBDArticlesMenus[[#This Row],[Nom articles menus]]","v":" "}]
[null,null,null,null,null,null,null,null,null,null,null,null,{"$f":"TabBDArticlesMenus[[#This Row],[Code nom articles menus]]&\" \"&TabBDArticlesMenus[[#This Row],[Nom articles menus]]","v":" "}]
[null,null,null,null,null,null,null,null,null,null,null,null,{"$f":"TabBDArticlesMenus[[#This Row],[Code nom articles menus]]&\" \"&TabBDArticlesMenus[[#This Row],[Nom articles menus]]","v":" "}]
[null,null,null,null,null,null,null,null,null,null,null,null,{"$f":"TabBDArticlesMenus[[#This Row],[Code nom articles menus]]&\" \"&TabBDArticlesMenus[[#This Row],[Nom articles menus]]","v":" "}]
[null,null,null,null,null,null,null,null,null,null,null,null,{"$f":"TabBDArticlesMenus[[#This Row],[Code nom articles menus]]&\" \"&TabBDArticlesMenus[[#This Row],[Nom articles menus]]","v":" "}]
[null,null,null,null,null,null,null,null,null,null,null,null,{"$f":"TabBDArticlesMenus[[#This Row],[Code nom articles menus]]&\" \"&TabBDArticlesMenus[[#This Row],[Nom articles menus]]","v":" "}]
[null,null,null,null,null,null,null,null,null,null,null,null,{"$f":"TabBDArticlesMenus[[#This Row],[Code nom articles menus]]&\" \"&TabBDArticlesMenus[[#This Row],[Nom articles menus]]","v":" "}]
[null,null,null,null,null,null,null,null,null,null,null,null,{"$f":"TabBDArticlesMenus[[#This Row],[Code nom articles menus]]&\" \"&TabBDArticlesMenus[[#This Row],[Nom articles menus]]","v":" "}]
[null,null,null,null,null,null,null,null,null,null,null,null,{"$f":"TabBDArticlesMenus[[#This Row],[Code nom articles menus]]&\" \"&TabBDArticlesMenus[[#This Row],[Nom articles menus]]","v":" "}]
[null,null,null,null,null,null,null,null,null,null,null,null,{"$f":"TabBDArticlesMenus[[#This Row],[Code nom articles menus]]&\" \"&TabBDArticlesMenus[[#This Row],[Nom articles menus]]","v":" "}]
[null,null,null,null,null,null,null,null,null,null,null,null,{"$f":"TabBDArticlesMenus[[#This Row],[Code nom articles menus]]&\" \"&TabBDArticlesMenus[[#This Row],[Nom articles menus]]","v":" "}]
[null,null,null,null,null,null,null,null,null,null,null,null,{"$f":"TabBDArticlesMenus[[#This Row],[Code nom articles menus]]&\" \"&TabBDArticlesMenus[[#This Row],[Nom articles menus]]","v":" "}]
[null,null,null,null,null,null,null,null,null,null,null,null,{"$f":"TabBDArticlesMenus[[#This Row],[Code nom articles menus]]&\" \"&TabBDArticlesMenus[[#This Row],[Nom articles menus]]","v":" "}]
[null,null,null,null,null,null,null,null,null,null,null,null,{"$f":"TabBDArticlesMenus[[#This Row],[Code nom articles menus]]&\" \"&TabBDArticlesMenus[[#This Row],[Nom articles menus]]","v":" "}]
[null,null,null,null,null,null,null,null,null,null,null,null,{"$f":"TabBDArticlesMenus[[#This Row],[Code nom articles menus]]&\" \"&TabBDArticlesMenus[[#This Row],[Nom articles menus]]","v":" "}]
[null,null,null,null,null,null,null,null,null,null,null,null,{"$f":"TabBDArticlesMenus[[#This Row],[Code nom articles menus]]&\" \"&TabBDArticlesMenus[[#This Row],[Nom articles menus]]","v":" "}]
[null,null,null,null,null,null,null,null,null,null,null,null,{"$f":"TabBDArticlesMenus[[#This Row],[Code nom articles menus]]&\" \"&TabBDArticlesMenus[[#This Row],[Nom articles menus]]","v":" "}]
[null,null,null,null,null,null,null,null,null,null,null,null,{"$f":"TabBDArticlesMenus[[#This Row],[Code nom articles menus]]&\" \"&TabBDArticlesMenus[[#This Row],[Nom articles menus]]","v":" "}]
[null,null,null,null,null,null,null,null,null,null,null,null,{"$f":"TabBDArticlesMenus[[#This Row],[Code nom articles menus]]&\" \"&TabBDArticlesMenus[[#This Row],[Nom articles menus]]","v":" "}]
[null,null,null,null,null,null,null,null,null,null,null,null,{"$f":"TabBDArticlesMenus[[#This Row],[Code nom articles menus]]&\" \"&TabBDArticlesMenus[[#This Row],[Nom articles menus]]","v":" "}]
[null,null,null,null,null,null,null,null,null,null,null,null,{"$f":"TabBDArticlesMenus[[#This Row],[Code nom articles menus]]&\" \"&TabBDArticlesMenus[[#This Row],[Nom articles menus]]","v":" "}]
[null,null,null,null,null,null,null,null,null,null,null,null,{"$f":"TabBDArticlesMenus[[#This Row],[Code nom articles menus]]&\" \"&TabBDArticlesMenus[[#This Row],[Nom articles menus]]","v":" "}]
[null,null,null,null,null,null,null,null,null,null,null,null,{"$f":"TabBDArticlesMenus[[#This Row],[Code nom articles menus]]&\" \"&TabBDArticlesMenus[[#This Row],[Nom articles menus]]","v":" "}]

{"sheet":"BD menus","index":6,"n_rows":0,"n_cols":0,"rows_kept":0,"cut":false,"hidden":false,"merged":[]}

{"sheet":"Menus midi retraite","index":7,"n_rows":0,"n_cols":0,"rows_kept":0,"cut":false,"hidden":false,"merged":[]}

{"sheet":"Menus journaliers","index":8,"n_rows":0,"n_cols":0,"rows_kept":0,"cut":false,"hidden":false,"merged":[]}

{"sheet":"Menus viandes midi weekend","index":9,"n_rows":0,"n_cols":0,"rows_kept":0,"cut":false,"hidden":false,"merged":[]}

{"sheet":"Quantités desserts","index":10,"n_rows":0,"n_cols":0,"rows_kept":0,"cut":false,"hidden":false,"merged":[]}

{"sheet":"Quantités légumes","index":11,"n_rows":0,"n_cols":0,"rows_kept":0,"cut":false,"hidden":false,"merged":[]}

{"sheet":"Quantités viandes","index":12,"n_rows":0,"n_cols":0,"rows_kept":0,"cut":false,"hidden":false,"merged":[]}

{"sheet":"Bordures","index":13,"n_rows":0,"n_cols":0,"rows_kept":0,"cut":false,"hidden":false,"merged":[]}